Workbook

Sheet Introduction
G1: =RIGHT(CELL("filename",A1), LEN(CELL("filename",A1)) - SEARCH("]", CELL("filename",A1))) -> Introduction
G2: by Hugues Pirotte
D4: Below is a list of the worksheets of the file, by order of appearance: (CTRL+h = back to "Introduction") | H4: =MID(CELL("filename",A1),SEARCH("-",CELL("filename",A1))+7,SEARCH(".",CELL("filename",A1))-SEARCH("-",CELL("filename",A1))-7) -> Correlations and copulas
C5: 1 | D5: Introduction
C6: 2 | D6: LN returns
C7: 3 | D7: VarCovar matrix
C8: 4 | D8: Gaussian copula
C9: 5 | D9: WCDR

Sheet LN returns
A1: =MID(CELL("filename",A1),SEARCH("-",CELL("filename",A1))+7,SEARCH(".",CELL("filename",A1))-SEARCH("-",CELL("filename",A1))-7) & " > " & RIGHT(CELL("filename",A1), LEN(CELL("filename",A1)) - SEARCH("]", CELL("filename",A1))) -> Correlations and copulas > LN returns
B3: 1 | C3: Why LN returns are useful?
F4: Standard | H4: LN
E5: Prices | F5: returns | H5: returns
E6: 100
E7: 150 | F7: =E7/E6-1 -> 0.5 | G7: =(1+F7) -> 1.5 | H7: =LN(E7/E6) -> 0.4054651081
E8: 100 | F8: =E8/E7-1 -> -0.3333333333 | G8: =(1+F8) -> 0.6666666667 | H8: =LN(E8/E7) -> -0.4054651081
E9: 125 | F9: =E9/E8-1 -> 0.25 | G9: =(1+F9) -> 1.25 | H9: =LN(E9/E8) -> 0.2231435513
E10: 100 | F10: =E10/E9-1 -> -0.2 | G10: =(1+F10) -> 0.8 | H10: =LN(E10/E9) -> -0.2231435513
F11: =SUM(F7:F10) -> 0.2166666667 | G11: =PRODUCT(G7:G10)-1 -> 0 | H11: =SUM(H7:H10) -> 0

Sheet VarCovar matrix
A1: =MID(CELL("filename",A1),SEARCH("-",CELL("filename",A1))+7,SEARCH(".",CELL("filename",A1))-SEARCH("-",CELL("filename",A1))-7) & " > " & RIGHT(CELL("filename",A1), LEN(CELL("filename",A1)) - SEARCH("]", CELL("filename",A1))) -> Correlations and copulas > VarCovar matrix
B4: 1 | D4: Some computations….
K5: RETURNS (ex-post)
E6: .SSMI | F6: UBSN | G6: RUKN | H6: ROG | I6: NOV | J6: CSGN
D7: DATE | E7: CLOSE | F7: CLOSE | G7: CLOSE | H7: CLOSE | I7: CLOSE | J7: CLOSE | K7: .SSMI | L7: UBSN | M7: RUKN | N7: ROG | O7: NOV | P7: CSGN | S7: .SSMI | T7: UBSN | U7: RUKN | V7: ROG | W7: NOV | X7: CSGN
D8: 1999-04-30 | E8: 7335.5 | F8: 86.35 | G8: 166.55 | H8: 173.8 | I8: 54.3 | J8: 69.05 | R8: Std. Dev | S8: =STDEV(K$9:K$268) -> 0.02924049621 | T8: =STDEV(L$9:L$268) -> 0.04346142396 | U8: 0.04819370833 | V8: 0.03762020247 | W8: 0.03447238697 | X8: 0.05575506254 | Y8: (weekly)
D9: 1999-05-07 | E9: 7215.4 | F9: 84.15 | G9: 161.4 | H9: 165.65 | I9: 55.2 | J9: 65.15 | K9: =LN(E9/E8) -> -0.01650794485 | L9: =LN(F9/F8) -> -0.02580788396 | M9: =LN(G9/G8) -> -0.0314098088 | N9: =LN(H9/H8) -> -0.04802808409 | O9: =LN(I9/I8) -> 0.01643872634 | P9: =LN(J9/J8) -> -0.05813857628 | S9: =S8*SQRT(52) -> 0.2108562168 | T9: =T8*SQRT(52) -> 0.3134047852 | U9: =U8*SQRT(52) -> 0.3475297731 | V9: =V8*SQRT(52) -> 0.271283138 | W9: =W8*SQRT(52) -> 0.2485839176 | X9: =X8*SQRT(52) -> 0.4020554737 | Y9: (annual)
D10: 1999-05-14 | E10: 7071.1 | F10: 81.6 | G10: 154.9 | H10: 164.95 | I10: 54.1 | J10: 62.1 | K10: =LN(E10/E9) -> -0.02020157595 | L10: =LN(F10/F9) -> -0.03077165867 | M10: =LN(G10/G9) -> -0.04110600841 | N10: =LN(H10/H9) -> -0.004234731071 | O10: =LN(I10/I9) -> -0.02012876743 | P10: =LN(J10/J9) -> -0.04794631463
D11: 1999-05-21 | E11: 7055.2 | F11: 78.65 | G11: 152.25 | H11: 161.5 | I11: 55.45 | J11: 63.7 | K11: =LN(E11/E10) -> -0.002251121202 | L11: =LN(F11/F10) -> -0.03682163247 | M11: =LN(G11/G10) -> -0.01725584083 | N11: =LN(H11/H10) -> -0.02113725501 | O11: =LN(I11/I10) -> 0.02464752794 | P11: =LN(J11/J10) -> 0.02543857364 | R11: Correlation | S11: .SSMI | T11: UBSN | U11: RUKN | V11: ROG | W11: NOV | X11: CSGN
D12: 1999-05-28 | E12: 6787.9 | F12: 73.65 | G12: 144.55 | H12: 156.55 | I12: 53.9 | J12: 60.5 | K12: =LN(E12/E11) -> -0.03862331821 | L12: =LN(F12/F11) -> -0.0656834866 | M12: =LN(G12/G11) -> -0.05189843813 | N12: =LN(H12/H11) -> -0.03112969489 | O12: =LN(I12/I11) -> -0.02835123588 | P12: =LN(J12/J11) -> -0.05154119754 | R12: .SSMI | S12: =CorrelMatrix(K9:P268) -> 1 | T12: 0.8051615075 | U12: 0.7155520886 | V12: 0.7487924195 | W12: 0.7249395201 | X12: 0.7536535087 | Z12: =TRANSPOSE(S9:X9) -> 0.2108562168
D13: 1999-06-04 | E13: 7156.4 | F13: 80.15 | G13: 149.15 | H13: 166.85 | I13: 56.9 | J13: 64.7 | K13: =LN(E13/E12) -> 0.05286544585 | L13: =LN(F13/F12) -> 0.08457573615 | M13: =LN(G13/G12) -> 0.0313270425 | N13: =LN(H13/H12) -> 0.06371975742 | O13: =LN(I13/I12) -> 0.05416486322 | P13: =LN(J13/J12) -> 0.06711783647 | R13: UBSN | S13: 0.8051615075 | T13: 1 | U13: 0.5819832051 | V13: 0.4973860308 | W13: 0.4298615603 | X13: 0.7565954214 | Z13: 0.3134047852
D14: 1999-06-11 | E14: 7054.6 | F14: 77.35 | G14: 147.4 | H14: 162.25 | I14: 56.35 | J14: 63.9 | K14: =LN(E14/E13) -> -0.01432717491 | L14: =LN(F14/F13) -> -0.03555930204 | M14: =LN(G14/G13) -> -0.01180253121 | N14: =LN(H14/H13) -> -0.02795684961 | O14: =LN(I14/I13) -> -0.009713100646 | P14: =LN(J14/J13) -> -0.01244184012 | R14: RUKN | S14: 0.7155520886 | T14: 0.5819832051 | U14: 1 | V14: 0.4579417797 | W14: 0.4193216953 | X14: 0.5734755578 | Z14: 0.3475297731
D15: 1999-06-18 | E15: 7189.8 | F15: 80.65 | G15: 150.9 | H15: 162.8 | I15: 57.85 | J15: 64.15 | K15: =LN(E15/E14) -> 0.01898346861 | L15: =LN(F15/F14) -> 0.04177822755 | M15: =LN(G15/G14) -> 0.02346738602 | N15: =LN(H15/H14) -> 0.003384097984 | O15: =LN(I15/I14) -> 0.02627121315 | P15: =LN(J15/J14) -> 0.003904729678 | R15: ROG | S15: 0.7487924195 | T15: 0.4973860308 | U15: 0.4579417797 | V15: 1 | W15: 0.5265302295 | X15: 0.4899663618 | Z15: 0.271283138
D16: 1999-06-25 | E16: 6964 | F16: 77.15 | G16: 148.65 | H16: 157.5 | I16: 55.35 | J16: 62.8 | K16: =LN(E16/E15) -> -0.03190933303 | L16: =LN(F16/F15) -> -0.04436722576 | M16: =LN(G16/G15) -> -0.01502281633 | N16: =LN(H16/H15) -> -0.0330969953 | O16: =LN(I16/I15) -> -0.04417679449 | P16: =LN(J16/J15) -> -0.02126901759 | R16: NOV | S16: 0.7249395201 | T16: 0.4298615603 | U16: 0.4193216953 | V16: 0.5265302295 | W16: 1 | X16: 0.2975331787 | Z16: 0.2485839176
D17: 1999-07-02 | E17: 7206.2 | F17: 80.85 | G17: 154.55 | H17: 159.35 | I17: 58.3 | J17: 65.05 | K17: =LN(E17/E16) -> 0.03418774468 | L17: =LN(F17/F16) -> 0.04684400721 | M17: =LN(G17/G16) -> 0.03892311913 | N17: =LN(H17/H16) -> 0.0116775826 | O17: =LN(I17/I16) -> 0.0519254342 | P17: =LN(J17/J16) -> 0.03520113148 | R17: CSGN | S17: 0.7536535087 | T17: 0.7565954214 | U17: 0.5734755578 | V17: 0.4899663618 | W17: 0.2975331787 | X17: 1 | Z17: 0.4020554737
D18: 1999-07-09 | E18: 7156.1 | F18: 81 | G18: 156 | H18: 159.65 | I18: 55.3 | J18: 65.85 | K18: =LN(E18/E17) -> -0.006976626754 | L18: =LN(F18/F17) -> 0.001853568649 | M18: =LN(G18/G17) -> 0.009338338671 | N18: =LN(H18/H17) -> 0.001880878297 | O18: =LN(I18/I17) -> -0.05282918483 | P18: =LN(J18/J17) -> 0.01222322323
D19: 1999-07-16 | E19: 7077.2 | F19: 79.1 | G19: 153.65 | H19: 162.05 | I19: 53.65 | J19: 66.65 | K19: =LN(E19/E18) -> -0.01108679058 | L19: =LN(F19/F18) -> -0.0237362799 | M19: =LN(G19/G18) -> -0.01517871867 | N19: =LN(H19/H18) -> 0.01492101043 | O19: =LN(I19/I18) -> -0.03029143945 | P19: =LN(J19/J18) -> 0.01207561844 | R19: var-covar | S19: .SSMI | T19: UBSN | U19: RUKN | V19: ROG | W19: NOV | X19: CSGN
D20: 1999-07-23 | E20: 6802.1 | F20: 74.15 | G20: 145.95 | H20: 159.6 | I20: 52.05 | J20: 63.9 | K20: =LN(E20/E19) -> -0.03964696122 | L20: =LN(F20/F19) -> -0.06462280619 | M20: =LN(G20/G19) -> -0.05141319128 | N20: =LN(H20/H19) -> -0.01523424457 | O20: =LN(I20/I19) -> -0.03027667402 | P20: =LN(J20/J19) -> -0.04213568524 | R20: .SSMI | S20: =S12*S$9*$Z12 -> 0.04446034417 | T20: =T12*T$9*$Z12 -> 0.05320776756 | U20: =U12*U$9*$Z12 -> 0.05243480782 | V20: =V12*V$9*$Z12 -> 0.04283222643 | W20: =W12*W$9*$Z12 -> 0.03799804162 | X20: =X12*X$9*$Z12 -> 0.06389165158
D21: 1999-07-30 | E21: 6887.4 | F21: 75.75 | G21: 142.7 | H21: 159.75 | I21: 52.35 | J21: 64.35 | K21: =LN(E21/E20) -> 0.01246226728 | L21: =LN(F21/F20) -> 0.02134837581 | M21: =LN(G21/G20) -> -0.02251957282 | N21: =LN(H21/H20) -> 0.0009394082419 | O21: =LN(I21/I20) -> 0.005747142256 | P21: =LN(J21/J20) -> 0.007017572659 | R21: UBSN | S21: =S13*S$9*$Z13 -> 0.05320776756 | T21: =T13*T$9*$Z13 -> 0.09822255938 | U21: =U13*U$9*$Z13 -> 0.06338815217 | V21: =V13*V$9*$Z13 -> 0.04228847339 | W21: =W13*W$9*$Z13 -> 0.03348939192 | X21: =X13*X$9*$Z13 -> 0.09533564542
D22: 1999-08-06 | E22: 6710.5 | F22: 71.5 | G22: 136.95 | H22: 155.55 | I22: 51.95 | J22: 60.85 | K22: =LN(E22/E21) -> -0.02602019146 | L22: =LN(F22/F21) -> -0.05774099469 | M22: =LN(G22/G21) -> -0.04112862877 | N22: =LN(H22/H21) -> -0.02664286991 | O22: =LN(I22/I21) -> -0.007670219771 | P22: =LN(J22/J21) -> -0.05592511461 | R22: RUKN | S22: =S14*S$9*$Z14 -> 0.05243480782 | T22: =T14*T$9*$Z14 -> 0.06338815217 | U22: =U14*U$9*$Z14 -> 0.1207769432 | V22: =V14*V$9*$Z14 -> 0.04317427812 | W22: =W14*W$9*$Z14 -> 0.03622533228 | X22: =X14*X$9*$Z14 -> 0.08012958775
D23: 1999-08-13 | E23: 6934.4 | F23: 71.65 | G23: 140.35 | H23: 165.9 | I23: 53.4 | J23: 62.9 | K23: =LN(E23/E22) -> 0.0328210685 | L23: =LN(F23/F22) -> 0.002095704574 | M23: =LN(G23/G22) -> 0.0245234071 | N23: =LN(H23/H22) -> 0.06441797385 | O23: =LN(I23/I22) -> 0.02752902842 | P23: =LN(J23/J22) -> 0.03313434427 | R23: ROG | S23: =S15*S$9*$Z15 -> 0.04283222643 | T23: =T15*T$9*$Z15 -> 0.04228847339 | U23: =U15*U$9*$Z15 -> 0.04317427812 | V23: =V15*V$9*$Z15 -> 0.07359454098 | W23: =W15*W$9*$Z15 -> 0.03550742176 | X23: =X15*X$9*$Z15 -> 0.05344105763
D24: 1999-08-20 | E24: 7051.5 | F24: 72 | G24: 145.95 | H24: 170.55 | I24: 54.6 | J24: 64.6 | K24: =LN(E24/E23) -> 0.01674582779 | L24: =LN(F24/F23) -> 0.004872964742 | M24: =LN(G24/G23) -> 0.03912479449 | N24: =LN(H24/H23) -> 0.02764331167 | O24: =LN(I24/I23) -> 0.02222313678 | P24: =LN(J24/J23) -> 0.02666824708 | R24: NOV | S24: =S16*S$9*$Z16 -> 0.03799804162 | T24: =T16*T$9*$Z16 -> 0.03348939192 | U24: =U16*U$9*$Z16 -> 0.03622533228 | V24: =V16*V$9*$Z16 -> 0.03550742176 | W24: =W16*W$9*$Z16 -> 0.06179396408 | X24: =X16*X$9*$Z16 -> 0.02973681215
D25: 1999-08-27 | E25: 7167.7 | F25: 71.65 | G25: 149.05 | H25: 173.8 | I25: 54.1 | J25: 69.15 | K25: =LN(E25/E24) -> 0.01634446197 | L25: =LN(F25/F24) -> -0.004872964742 | M25: =LN(G25/G24) -> 0.02101772282 | N25: =LN(H25/H24) -> 0.01887670397 | O25: =LN(I25/I24) -> -0.009199696898 | P25: =LN(J25/J24) -> 0.06806364732 | R25: CSGN | S25: =S17*S$9*$Z17 -> 0.06389165158 | T25: =T17*T$9*$Z17 -> 0.09533564542 | U25: =U17*U$9*$Z17 -> 0.08012958775 | V25: =V17*V$9*$Z17 -> 0.05344105763 | W25: =W17*W$9*$Z17 -> 0.02973681215 | X25: =X17*X$9*$Z17 -> 0.161648604
D26: 1999-09-03 | E26: 7137.6 | F26: 70.4 | G26: 150.4 | H26: 174.15 | I26: 54.75 | J26: 67.1 | K26: =LN(E26/E25) -> -0.004208236726 | L26: =LN(F26/F25) -> -0.01759989111 | M26: =LN(G26/G25) -> 0.009016591392 | N26: =LN(H26/H25) -> 0.002011783981 | O26: =LN(I26/I25) -> 0.01194318284 | P26: =LN(J26/J25) -> -0.03009401413
D27: 1999-09-10 | E27: 7171.9 | F27: 69.9 | G27: 155.15 | H27: 177.55 | I27: 55.1 | J27: 66.45 | K27: =LN(E27/E26) -> 0.004794027142 | L27: =LN(F27/F26) -> -0.007127613924 | M27: =LN(G27/G26) -> 0.03109397938 | N27: =LN(H27/H26) -> 0.01933526258 | O27: =LN(I27/I26) -> 0.006372347462 | P27: =LN(J27/J26) -> -0.009734258818
D28: 1999-09-17 | E28: 7026.6 | F28: 68.75 | G28: 155.05 | H28: 174.45 | I28: 53.5 | J28: 63.9 | K28: =LN(E28/E27) -> -0.02046766524 | L28: =LN(F28/F27) -> -0.01658891269 | M28: =LN(G28/G27) -> -0.0006447453479 | N28: =LN(H28/H27) -> -0.01761409176 | O28: =LN(I28/I27) -> -0.02946806226 | P28: =LN(J28/J27) -> -0.03913042378
D29: 1999-09-24 | E29: 6965.7 | F29: 67.85 | G29: 152.15 | H29: 169.3 | I29: 55.25 | J29: 62.9 | K29: =LN(E29/E28) -> -0.0087048426 | L29: =LN(F29/F28) -> -0.01317735027 | M29: =LN(G29/G28) -> -0.0188807692 | N29: =LN(H29/H28) -> -0.02996587849 | O29: =LN(I29/I28) -> 0.0321866865 | P29: =LN(J29/J28) -> -0.01577319768
D30: 1999-10-01 | E30: 6878.6 | F30: 69.75 | G30: 150 | H30: 167.4 | I30: 53.75 | J30: 62.45 | K30: =LN(E30/E29) -> -0.01258296183 | L30: =LN(F30/F29) -> 0.02761803442 | M30: =LN(G30/G29) -> -0.01423158225 | N30: =LN(H30/H29) -> -0.01128613108 | O30: =LN(I30/I29) -> -0.02752467339 | P30: =LN(J30/J29) -> -0.007179927135
D31: 1999-10-08 | E31: 7096.5 | F31: 72.35 | G31: 149.65 | H31: 176 | I31: 54.4 | J31: 64.85 | K31: =LN(E31/E30) -> 0.03118656189 | L31: =LN(F31/F30) -> 0.03659803238 | M31: =LN(G31/G30) -> -0.002336059798 | N31: =LN(H31/H30) -> 0.05009783698 | O31: =LN(I31/I30) -> 0.01202048685 | P31: =LN(J31/J30) -> 0.03771067419
D32: 1999-10-15 | E32: 6787.2 | F32: 68.1 | G32: 147.4 | H32: 170.4 | I32: 53.05 | J32: 59.45 | K32: =LN(E32/E31) -> -0.04456321937 | L32: =LN(F32/F31) -> -0.06053823992 | M32: =LN(G32/G31) -> -0.01514925454 | N32: =LN(H32/H31) -> -0.03233538064 | O32: =LN(I32/I31) -> -0.0251292888 | P32: =LN(J32/J31) -> -0.08694128763
D33: 1999-10-22 | E33: 6876.9 | F33: 68.5 | G33: 150.9 | H33: 173.85 | I33: 54.2 | J33: 61.3 | K33: =LN(E33/E32) -> 0.01312948362 | L33: =LN(F33/F32) -> 0.005856532113 | M33: =LN(G33/G32) -> 0.02346738602 | N33: =LN(H33/H32) -> 0.02004424406 | O33: =LN(I33/I32) -> 0.02144604339 | P33: =LN(J33/J32) -> 0.03064421981
D34: 1999-10-29 | E34: 7160.3 | F34: 73.9 | G34: 157.65 | H34: 177.25 | I34: 55.45 | J34: 66.9 | K34: =LN(E34/E33) -> 0.04038391053 | L34: =LN(F34/F33) -> 0.07587908269 | M34: =LN(G34/G33) -> 0.04376002022 | N34: =LN(H34/H33) -> 0.01936830696 | O34: =LN(I34/I33) -> 0.02280080535 | P34: =LN(J34/J33) -> 0.08741912419
D35: 1999-11-05 | E35: 7345.5 | F35: 77.35 | G35: 163.9 | H35: 179.2 | I35: 58.35 | J35: 67.35 | K35: =LN(E35/E34) -> 0.02553600129 | L35: =LN(F35/F34) -> 0.04562774906 | M35: =LN(G35/G34) -> 0.03887909976 | N35: =LN(H35/H34) -> 0.01094133513 | O35: =LN(I35/I34) -> 0.05097764494 | P35: =LN(J35/J34) -> 0.006703935722
D36: 1999-11-12 | E36: 7421.2 | F36: 79 | G36: 165.4 | H36: 179.25 | I36: 59.5 | J36: 68.15 | K36: =LN(E36/E35) -> 0.01025288834 | L36: =LN(F36/F35) -> 0.02110727545 | M36: =LN(G36/G35) -> 0.00911029684 | N36: =LN(H36/H35) -> 0.0002789789389 | O36: =LN(I36/I35) -> 0.01951695382 | P36: =LN(J36/J35) -> 0.01180825529
D37: 1999-11-19 | E37: 7367.4 | F37: 79.15 | G37: 164.65 | H37: 181.5 | I37: 57 | J37: 68.7 | K37: =LN(E37/E36) -> -0.007275906758 | L37: =LN(F37/F36) -> 0.00189693386 | M37: =LN(G37/G36) -> -0.004544773767 | N37: =LN(H37/H36) -> 0.01247417423 | O37: =LN(I37/I36) -> -0.04292504472 | P37: =LN(J37/J36) -> 0.008038041086
D38: 1999-11-26 | E38: 7359.8 | F38: 74 | G38: 162.65 | H38: 184.05 | I38: 58.3 | J38: 67.8 | K38: =LN(E38/E37) -> -0.001032103954 | L38: =LN(F38/F37) -> -0.06727969312 | M38: =LN(G38/G37) -> -0.0122213559 | N38: =LN(H38/H37) -> 0.01395180612 | O38: =LN(I38/I37) -> 0.02255082552 | P38: =LN(J38/J37) -> -0.01318700428
D39: 1999-12-03 | E39: 7547.3 | F39: 75.65 | G39: 164.65 | H39: 186.95 | I39: 61.45 | J39: 69.5 | K39: =LN(E39/E38) -> 0.02515712495 | L39: =LN(F39/F38) -> 0.02205234703 | M39: =LN(G39/G38) -> 0.0122213559 | N39: =LN(H39/H38) -> 0.0156337416 | O39: =LN(I39/I38) -> 0.05262174266 | P39: =LN(J39/J38) -> 0.02476455762
D40: 1999-12-10 | E40: 7299.7 | F40: 71.85 | G40: 160.4 | H40: 179.7 | I40: 57.4 | J40: 68.5 | K40: =LN(E40/E39) -> -0.03335663199 | L40: =LN(F40/F39) -> -0.05153682771 | M40: =LN(G40/G39) -> -0.02615131339 | N40: =LN(H40/H39) -> -0.03955240763 | O40: =LN(I40/I39) -> -0.06817953269 | P40: =LN(J40/J39) -> -0.0144930073
D41: 1999-12-17 | E41: 7351.3 | F41: 69.15 | G41: 160.55 | H41: 178.2 | I41: 55.9 | J41: 68.35 | K41: =LN(E41/E40) -> 0.007043916914 | L41: =LN(F41/F40) -> -0.03830255441 | M41: =LN(G41/G40) -> 0.0009347251031 | N41: =LN(H41/H40) -> -0.008382278753 | O41: =LN(I41/I40) -> -0.02647992316 | P41: =LN(J41/J40) -> -0.002192182098
D42: 1999-12-24 | E42: 7397.2 | F42: 71.35 | G42: 160.9 | H42: 181.55 | I42: 55.3 | J42: 69.4 | K42: =LN(E42/E41) -> 0.006224381895 | L42: =LN(F42/F41) -> 0.03131928581 | M42: =LN(G42/G41) -> 0.002177633463 | N42: =LN(H42/H41) -> 0.01862458282 | O42: =LN(I42/I41) -> -0.01079147163 | P42: =LN(J42/J41) -> 0.01524530434
D43: 1999-12-31 | E43: 7570.1 | F43: 71.65 | G43: 163.2 | H43: 183.1 | I43: 56.85 | J43: 72.25 | K43: =LN(E43/E42) -> 0.02310472717 | L43: =LN(F43/F42) -> 0.004195810351 | M43: =LN(G43/G42) -> 0.01419338853 | N43: =LN(H43/H42) -> 0.00850135382 | O43: =LN(I43/I42) -> 0.02764331167 | P43: =LN(J43/J42) -> 0.04024545948
D44: 2000-01-07 | E44: 7448 | F44: 69.5 | G44: 156.35 | H44: 182.6 | I44: 56.5 | J44: 68.7 | K44: =LN(E44/E43) -> -0.01626073743 | L44: =LN(F44/F43) -> -0.0304664017 | M44: =LN(G44/G43) -> -0.04287935863 | N44: =LN(H44/H43) -> -0.00273448352 | O44: =LN(I44/I43) -> -0.006175582044 | P44: =LN(J44/J43) -> -0.05038312776
D45: 2000-01-14 | E45: 7513.9 | F45: 72.35 | G45: 148.85 | H45: 184.05 | I45: 56.9 | J45: 69.65 | K45: =LN(E45/E44) -> 0.008809098598 | L45: =LN(F45/F44) -> 0.04018870051 | M45: =LN(G45/G44) -> -0.04915799644 | N45: =LN(H45/H44) -> 0.007909491664 | O45: =LN(I45/I44) -> 0.00705470298 | P45: =LN(J45/J44) -> 0.013733501
D46: 2000-01-21 | E46: 7236 | F46: 67.5 | G46: 139.95 | H46: 180.1 | I46: 54.2 | J46: 67.45 | K46: =LN(E46/E45) -> -0.03768607104 | L46: =LN(F46/F45) -> -0.0693878552 | M46: =LN(G46/G45) -> -0.0616538715 | N46: =LN(H46/H45) -> -0.02169520764 | O46: =LN(I46/I45) -> -0.04861443269 | P46: =LN(J46/J45) -> -0.03209611757
D47: 2000-01-28 | E47: 7029.6 | F47: 65.6 | G47: 145.75 | H47: 173.4 | I47: 51.1 | J47: 65.5 | K47: =LN(E47/E46) -> -0.02893876233 | L47: =LN(F47/F46) -> -0.02855190193 | M47: =LN(G47/G46) -> 0.04060760927 | N47: =LN(H47/H46) -> -0.03791118784 | O47: =LN(I47/I46) -> -0.05889641124 | P47: =LN(J47/J46) -> -0.02933644001
D48: 2000-02-04 | E48: 7148.7 | F48: 68.5 | G48: 142.2 | H48: 181.75 | I48: 50.2 | J48: 68.05 | K48: =LN(E48/E47) -> 0.01680071679 | L48: =LN(F48/F47) -> 0.04325804932 | M48: =LN(G48/G47) -> -0.02465830786 | N48: =LN(H48/H47) -> 0.04703105207 | O48: =LN(I48/I47) -> -0.01776947051 | P48: =LN(J48/J47) -> 0.03819258646
D49: 2000-02-11 | E49: 6973.4 | F49: 68 | G49: 134.95 | H49: 179.45 | I49: 49.85 | J49: 67.7 | K49: =LN(E49/E48) -> -0.02482761128 | L49: =LN(F49/F48) -> -0.007326040092 | M49: =LN(G49/G48) -> -0.05233017791 | N49: =LN(H49/H48) -> -0.01273549882 | O49: =LN(I49/I48) -> -0.00699653029 | P49: =LN(J49/J48) -> -0.005156549179
D50: 2000-02-18 | E50: 7047 | F50: 69.5 | G50: 136.7 | H50: 176.3 | I50: 52.35 | J50: 65.3 | K50: =LN(E50/E49) -> 0.01049908363 | L50: =LN(F50/F49) -> 0.02181904739 | M50: =LN(G50/G49) -> 0.01288440427 | N50: =LN(H50/H49) -> -0.01770952819 | O50: =LN(I50/I49) -> 0.04893344091 | P50: =LN(J50/J49) -> -0.03609414364
D51: 2000-02-25 | E51: 6989.1 | F51: 68.6 | G51: 133.7 | H51: 173.9 | I51: 51.9 | J51: 63.35 | K51: =LN(E51/E50) -> -0.008250201754 | L51: =LN(F51/F50) -> -0.01303421784 | M51: =LN(G51/G50) -> -0.02219025962 | N51: =LN(H51/H50) -> -0.01370666804 | O51: =LN(I51/I50) -> -0.008633147145 | P51: =LN(J51/J50) -> -0.03031712952
D52: 2000-03-03 | E52: 7025.3 | F52: 66.75 | G52: 134.95 | H52: 180.35 | I52: 51.35 | J52: 63.45 | K52: =LN(E52/E51) -> 0.005166126343 | L52: =LN(F52/F51) -> -0.02733823745 | M52: =LN(G52/G51) -> 0.009305855356 | N52: =LN(H52/H51) -> 0.03641898599 | O52: =LN(I52/I51) -> -0.0106538538 | P52: =LN(J52/J51) -> 0.001577287393
D53: 2000-03-10 | E53: 6907.9 | F53: 66.75 | G53: 129.45 | H53: 182.65 | I53: 49.85 | J53: 64.85 | K53: =LN(E53/E52) -> -0.01685223472 | L53: =LN(F53/F52) -> 0 | M53: =LN(G53/G52) -> -0.04160963327 | N53: =LN(H53/H52) -> 0.01267234589 | O53: =LN(I53/I52) -> -0.02964643997 | P53: =LN(J53/J52) -> 0.0218247166
D54: 2000-03-17 | E54: 7100.6 | F54: 68.1 | G54: 139.65 | H54: 179.2 | I54: 51.8 | J54: 68.25 | K54: =LN(E54/E53) -> 0.02751360331 | L54: =LN(F54/F53) -> 0.02002291588 | M54: =LN(G54/G53) -> 0.07584458619 | N54: =LN(H54/H53) -> -0.0190692527 | O54: =LN(I54/I53) -> 0.03837165286 | P54: =LN(J54/J53) -> 0.0511005233
D55: 2000-03-24 | E55: 7440.4 | F55: 71.9 | G55: 144.1 | H55: 187.05 | I55: 53.2 | J55: 75.55 | K55: =LN(E55/E54) -> 0.04674532332 | L55: =LN(F55/F54) -> 0.05429905157 | M55: =LN(G55/G54) -> 0.03136821061 | N55: =LN(H55/H54) -> 0.04287346025 | O55: =LN(I55/I54) -> 0.02666824708 | P55: =LN(J55/J54) -> 0.1016172547
D56: 2000-03-31 | E56: 7428.1 | F56: 72.85 | G56: 143.75 | H56: 174.95 | I56: 55.3 | J56: 75.55 | K56: =LN(E56/E55) -> -0.001654504867 | L56: =LN(F56/F55) -> 0.01312626791 | M56: =LN(G56/G55) -> -0.002431823328 | N56: =LN(H56/H55) -> -0.06687574198 | O56: =LN(I56/I55) -> 0.03871451218 | P56: =LN(J56/J55) -> 0
D57: 2000-04-07 | E57: 7450.8 | F57: 72.9 | G57: 143.3 | H57: 174.7 | I57: 56.75 | J57: 73.75 | K57: =LN(E57/E56) -> 0.003051303203 | L57: =LN(F57/F56) -> 0.0006861063734 | M57: =LN(G57/G56) -> -0.003135344843 | N57: =LN(H57/H56) -> -0.001430001674 | O57: =LN(I57/I56) -> 0.02588274783 | P57: =LN(J57/J56) -> -0.0241136935
D58: 2000-04-14 | E58: 7494.4 | F58: 73.1 | G58: 143.2 | H58: 173.4 | I58: 58.35 | J58: 74.4 | K58: =LN(E58/E57) -> 0.005834665804 | L58: =LN(F58/F57) -> 0.002739727741 | M58: =LN(G58/G57) -> -0.0006980803076 | N58: =LN(H58/H57) -> -0.007469152794 | O58: =LN(I58/I57) -> 0.02780370237 | P58: =LN(J58/J57) -> 0.008774946619
D59: 2000-04-21 | E59: 7371.1 | F59: 70.75 | G59: 139.55 | H59: 173.2 | I59: 57.1 | J59: 70.4 | K59: =LN(E59/E58) -> -0.01658912619 | L59: =LN(F59/F58) -> -0.03267583023 | M59: =LN(G59/G58) -> -0.02581929454 | N59: =LN(H59/H58) -> -0.001154068218 | O59: =LN(I59/I58) -> -0.02165524207 | P59: =LN(J59/J58) -> -0.05526267868
D60: 2000-04-28 | E60: 7406.2 | F60: 70.4 | G60: 138.25 | H60: 174.45 | I60: 58.3 | J60: 70.9 | K60: =LN(E60/E59) -> 0.004750538462 | L60: =LN(F60/F59) -> -0.004959273359 | M60: =LN(G60/G59) -> -0.00935931958 | N60: =LN(H60/H59) -> 0.007191171504 | O60: =LN(I60/I59) -> 0.02079797669 | P60: =LN(J60/J59) -> 0.007077170374
D61: 2000-05-05 | E61: 7499.4 | F61: 72.5 | G61: 137.2 | H61: 172.4 | I61: 58.35 | J61: 73.75 | K61: =LN(E61/E60) -> 0.01250553008 | L61: =LN(F61/F60) -> 0.0293932987 | M61: =LN(G61/G60) -> -0.007623925111 | N61: =LN(H61/H60) -> -0.0118208094 | O61: =LN(I61/I60) -> 0.0008572653761 | P61: =LN(J61/J60) -> 0.03941056168
D62: 2000-05-12 | E62: 7736.7 | F62: 73.1 | G62: 146.7 | H62: 175.35 | I62: 60.35 | J62: 77.15 | K62: =LN(E62/E61) -> 0.03115222275 | L62: =LN(F62/F61) -> 0.008241804895 | M62: =LN(G62/G61) -> 0.06694996986 | N62: =LN(H62/H61) -> 0.01696661836 | O62: =LN(I62/I61) -> 0.03370158881 | P62: =LN(J62/J61) -> 0.04507058359
D63: 2000-05-19 | E63: 7718.7 | F63: 75.85 | G63: 152.9 | H63: 170 | I63: 58.85 | J63: 76.6 | K63: =LN(E63/E62) -> -0.002329284022 | L63: =LN(F63/F62) -> 0.03692933904 | M63: =LN(G63/G62) -> 0.04139442779 | N63: =LN(H63/H62) -> -0.03098553954 | O63: =LN(I63/I62) -> -0.02516911384 | P63: =LN(J63/J62) -> -0.007154502063
D64: 2000-05-26 | E64: 7821.7 | F64: 76.1 | G64: 164.5 | H64: 174.35 | I64: 60.8 | J64: 72.5 | K64: =LN(E64/E63) -> 0.01325596616 | L64: =LN(F64/F63) -> 0.003290559073 | M64: =LN(G64/G63) -> 0.07312645727 | N64: =LN(H64/H63) -> 0.02526633607 | O64: =LN(I64/I63) -> 0.03259795527 | P64: =LN(J64/J63) -> -0.05501051489
D65: 2000-06-02 | E65: 7841.6 | F65: 78.35 | G65: 162.65 | H65: 172.4 | I65: 61.2 | J65: 74.4 | K65: =LN(E65/E64) -> 0.002540972938 | L65: =LN(F65/F64) -> 0.02913770393 | M65: =LN(G65/G64) -> -0.01130991729 | N65: =LN(H65/H64) -> -0.01124741489 | O65: =LN(I65/I64) -> 0.006557400546 | P65: =LN(J65/J64) -> 0.02586937998
D66: 2000-06-09 | E66: 7796.8 | F66: 81.35 | G66: 164.8 | H66: 171 | I66: 60.2 | J66: 75.35 | K66: =LN(E66/E65) -> -0.005729502066 | L66: =LN(F66/F65) -> 0.03757486486 | M66: =LN(G66/G65) -> 0.01313196456 | N66: =LN(H66/H65) -> -0.008153801727 | O66: =LN(I66/I65) -> -0.0164748372 | P66: =LN(J66/J65) -> 0.01268798323
D67: 2000-06-16 | E67: 7845.6 | F67: 81.35 | G67: 166.65 | H67: 168.85 | I67: 60.3 | J67: 75 | K67: =LN(E67/E66) -> 0.006239471989 | L67: =LN(F67/F66) -> 0 | M67: =LN(G67/G66) -> 0.01116318728 | N67: =LN(H67/H66) -> -0.01265280967 | O67: =LN(I67/I66) -> 0.001659751418 | P67: =LN(J67/J66) -> -0.004655811536
D68: 2000-06-23 | E68: 7677 | F68: 79.5 | G68: 162.65 | H68: 159.85 | I68: 60.25 | J68: 73.4 | K68: =LN(E68/E67) -> -0.02172401925 | L68: =LN(F68/F67) -> -0.023003812 | M68: =LN(G68/G67) -> -0.02429515183 | N68: =LN(H68/H67) -> -0.05477487133 | O68: =LN(I68/I67) -> -0.0008295313624 | P68: =LN(J68/J67) -> -0.02156417792
D69: 2000-06-30 | E69: 7761.6 | F69: 79.65 | G69: 165.9 | H69: 158.8 | I69: 62.85 | J69: 74.1 | K69: =LN(E69/E68) -> 0.01095965266 | L69: =LN(F69/F68) -> 0.001885014696 | M69: =LN(G69/G68) -> 0.01978454428 | N69: =LN(H69/H68) -> -0.006590326693 | O69: =LN(I69/I68) -> 0.04224836267 | P69: =LN(J69/J68) -> 0.009491596682
D70: 2000-07-07 | E70: 7903.7 | F70: 80.5 | G70: 166.4 | H70: 168.9 | I70: 63.2 | J70: 74.9 | K70: =LN(E70/E69) -> 0.01814250575 | L70: =LN(F70/F69) -> 0.01061514807 | M70: =LN(G70/G69) -> 0.003009331191 | N70: =LN(H70/H69) -> 0.061661275 | O70: =LN(I70/I69) -> 0.005553366117 | P70: =LN(J70/J69) -> 0.01073835822
D71: 2000-07-14 | E71: 7938.9 | F71: 79.35 | G71: 170.85 | H71: 162 | I71: 63.1 | J71: 76 | K71: =LN(E71/E70) -> 0.004443722359 | L71: =LN(F71/F70) -> -0.01438873745 | M71: =LN(G71/G70) -> 0.02639145017 | N71: =LN(H71/H70) -> -0.04171048858 | O71: =LN(I71/I70) -> -0.001583531606 | P71: =LN(J71/J70) -> 0.01457944976
D72: 2000-07-21 | E72: 7900.4 | F72: 78.65 | G72: 169.4 | H72: 157.5 | I72: 62.35 | J72: 80.6 | K72: =LN(E72/E71) -> -0.004861335516 | L72: =LN(F72/F71) -> -0.008860817468 | M72: =LN(G72/G71) -> -0.008523196343 | N72: =LN(H72/H71) -> -0.02817087697 | O72: =LN(I72/I71) -> -0.01195709742 | P72: =LN(J72/J71) -> 0.05876530923
D73: 2000-07-28 | E73: 7997.8 | F73: 80.5 | G73: 170.85 | H73: 157.7 | I73: 62.3 | J73: 81.95 | K73: =LN(E73/E72) -> 0.01225311276 | L73: =LN(F73/F72) -> 0.02324955492 | M73: =LN(G73/G72) -> 0.008523196343 | N73: =LN(H73/H72) -> 0.001269035703 | O73: =LN(I73/I72) -> -0.0008022463326 | P73: =LN(J73/J72) -> 0.01661065568
D74: 2000-08-04 | E74: 8119.6 | F74: 80.85 | G74: 179.45 | H74: 163.5 | I74: 63.4 | J74: 83.3 | K74: =LN(E74/E73) -> 0.01511438802 | L74: =LN(F74/F73) -> 0.004338401599 | M74: =LN(G74/G73) -> 0.04911063903 | N74: =LN(H74/H73) -> 0.03611849637 | O74: =LN(I74/I73) -> 0.01750243565 | P74: =LN(J74/J73) -> 0.01633924398
D75: 2000-08-11 | E75: 8236.2 | F75: 87 | G75: 181.5 | H75: 165.5 | I75: 63.35 | J75: 85.6 | K75: =LN(E75/E74) -> 0.01425818063 | L75: =LN(F75/F74) -> 0.07331253263 | M75: =LN(G75/G74) -> 0.01135903611 | N75: =LN(H75/H74) -> 0.01215820448 | O75: =LN(I75/I74) -> -0.000788954676 | P75: =LN(J75/J74) -> 0.02723673397
D76: 2000-08-18 | E76: 8251.9 | F76: 88 | G76: 176.8 | H76: 157.05 | I76: 64.05 | J76: 87.2 | K76: =LN(E76/E75) -> 0.001904404358 | L76: =LN(F76/F75) -> 0.01142869582 | M76: =LN(G76/G75) -> -0.0262365035 | N76: =LN(H76/H75) -> -0.05240696883 | O76: =LN(I76/I75) -> 0.01098912158 | P76: =LN(J76/J75) -> 0.01851904777
D77: 2000-08-25 | E77: 8311.7 | F77: 84.65 | G77: 178.6 | H77: 158.6 | I77: 65 | J77: 86.95 | K77: =LN(E77/E76) -> 0.007220683888 | L77: =LN(F77/F76) -> -0.0388117059 | M77: =LN(G77/G76) -> 0.01012951824 | N77: =LN(H77/H76) -> 0.009821083216 | O77: =LN(I77/I76) -> 0.01472324155 | P77: =LN(J77/J76) -> -0.002871090115
D78: 2000-09-01 | E78: 8234.9 | F78: 85.35 | G78: 178.45 | H78: 155.45 | I78: 64.3 | J78: 83.3 | K78: =LN(E78/E77) -> -0.009282940484 | L78: =LN(F78/F77) -> 0.008235340661 | M78: =LN(G78/G77) -> -0.0008402185062 | N78: =LN(H78/H77) -> -0.0200611727 | O78: =LN(I78/I77) -> -0.01082763865 | P78: =LN(J78/J77) -> -0.04288469163
D79: 2000-09-08 | E79: 8088.1 | F79: 85.15 | G79: 174.3 | H79: 153.7 | I79: 62.7 | J79: 85.05 | K79: =LN(E79/E78) -> -0.01798737463 | L79: =LN(F79/F78) -> -0.002346042132 | M79: =LN(G79/G78) -> -0.02353049741 | N79: =LN(H79/H78) -> -0.01132148596 | O79: =LN(I79/I78) -> -0.0251981836 | P79: =LN(J79/J78) -> 0.02079076967
D80: 2000-09-15 | E80: 8014.4 | F80: 85 | G80: 169.6 | H80: 150.5 | I80: 63.2 | J80: 84.7 | K80: =LN(E80/E79) -> -0.009153922017 | L80: =LN(F80/F79) -> -0.001763150618 | M80: =LN(G80/G79) -> -0.02733522917 | N80: =LN(H80/H79) -> -0.02103956636 | O80: =LN(I80/I79) -> 0.007942853514 | P80: =LN(J80/J79) -> -0.004123717184
D81: 2000-09-22 | E81: 7976.6 | F81: 81.15 | G81: 168.6 | H81: 156.25 | I81: 65.15 | J81: 79.1 | K81: =LN(E81/E80) -> -0.004727668114 | L81: =LN(F81/F80) -> -0.04635196253 | M81: =LN(G81/G80) -> -0.00591367779 | N81: =LN(H81/H80) -> 0.03749420443 | O81: =LN(I81/I80) -> 0.03038800242 | P81: =LN(J81/J80) -> -0.06840272688
D82: 2000-09-29 | E82: 7713.3 | F82: 76.65 | G82: 164.65 | H82: 152 | I82: 64.45 | J82: 73.75 | K82: =LN(E82/E81) -> -0.03356614394 | L82: =LN(F82/F81) -> -0.05704968864 | M82: =LN(G82/G81) -> -0.02370703675 | N82: =LN(H82/H81) -> -0.02757676777 | O82: =LN(I82/I81) -> -0.01080257419 | P82: =LN(J82/J81) -> -0.07003187955
D83: 2000-10-06 | E83: 7920.2 | F83: 80.35 | G83: 173.2 | H83: 158.2 | I83: 66 | J83: 76.15 | K83: =LN(E83/E82) -> 0.02647034647 | L83: =LN(F83/F82) -> 0.04714248687 | M83: =LN(G83/G82) -> 0.05062498731 | N83: =LN(H83/H82) -> 0.03997953449 | O83: =LN(I83/I82) -> 0.02376501264 | P83: =LN(J83/J82) -> 0.03202408412
D84: 2000-10-13 | E84: 7629.4 | F84: 72.65 | G84: 172.35 | H84: 159.5 | I84: 66.1 | J84: 66.9 | K84: =LN(E84/E83) -> -0.03740725279 | L84: =LN(F84/F83) -> -0.1007387022 | M84: =LN(G84/G83) -> -0.004919703165 | N84: =LN(H84/H83) -> 0.008183866891 | O84: =LN(I84/I83) -> 0.001514004831 | P84: =LN(J84/J83) -> -0.1295061122
D85: 2000-10-20 | E85: 7722.7 | F85: 75 | G85: 172.45 | H85: 160.45 | I85: 65.7 | J85: 72.35 | K85: =LN(E85/E84) -> 0.01215483858 | L85: =LN(F85/F84) -> 0.03183472352 | M85: =LN(G85/G84) -> 0.00058004642 | N85: =LN(H85/H84) -> 0.005938445331 | O85: =LN(I85/I84) -> -0.006069821367 | P85: =LN(J85/J84) -> 0.07831648594
D86: 2000-10-27 | E86: 7884.5 | F86: 80.5 | G86: 173.55 | H86: 164 | I86: 67.25 | J86: 74.9 | K86: =LN(E86/E85) -> 0.02073476304 | L86: =LN(F86/F85) -> 0.07076907089 | M86: =LN(G86/G85) -> 0.006358402925 | N86: =LN(H86/H85) -> 0.02188406027 | O86: =LN(I86/I85) -> 0.02331809299 | P86: =LN(J86/J85) -> 0.03463843745
D87: 2000-11-03 | E87: 8062.1 | F87: 84.15 | G87: 181.35 | H87: 167.2 | I87: 66.5 | J87: 78.75 | K87: =LN(E87/E86) -> 0.02227526162 | L87: =LN(F87/F86) -> 0.04434373621 | M87: =LN(G87/G86) -> 0.04396312342 | N87: =LN(H87/H86) -> 0.01932427283 | O87: =LN(I87/I86) -> -0.01121507082 | P87: =LN(J87/J86) -> 0.05012438718
D88: 2000-11-10 | E88: 8050 | F88: 82.15 | G88: 188.65 | H88: 169.15 | I88: 68.95 | J88: 73.3 | K88: =LN(E88/E87) -> -0.001501977058 | L88: =LN(F88/F87) -> -0.02405407615 | M88: =LN(G88/G87) -> 0.03946458068 | N88: =LN(H88/H87) -> 0.01159519458 | O88: =LN(I88/I87) -> 0.03617965658 | P88: =LN(J88/J87) -> -0.07171766881
D89: 2000-11-17 | E89: 8131 | F89: 86.5 | G89: 192.55 | H89: 170 | I89: 69.65 | J89: 72.8 | K89: =LN(E89/E88) -> 0.0100118258 | L89: =LN(F89/F88) -> 0.05159756945 | M89: =LN(G89/G88) -> 0.02046241385 | N89: =LN(H89/H88) -> 0.005012541824 | O89: =LN(I89/I88) -> 0.01010109599 | P89: =LN(J89/J88) -> -0.00684465369
D90: 2000-11-24 | E90: 8081.5 | F90: 82.35 | G90: 192 | H90: 170.25 | I90: 70.5 | J90: 72.15 | K90: =LN(E90/E89) -> -0.006106418358 | L90: =LN(F90/F89) -> -0.04916595731 | M90: =LN(G90/G89) -> -0.002860488233 | N90: =LN(H90/H89) -> 0.001469507979 | O90: =LN(I90/I89) -> 0.01213000959 | P90: =LN(J90/J89) -> -0.008968669983
D91: 2000-12-01 | E91: 8050.5 | F91: 82.5 | G91: 193.8 | H91: 173 | I91: 70.4 | J91: 71.7 | K91: =LN(E91/E90) -> -0.003843297565 | L91: =LN(F91/F90) -> 0.001819836717 | M91: =LN(G91/G90) -> 0.009331327429 | N91: =LN(H91/H90) -> 0.01602364947 | O91: =LN(I91/I90) -> -0.001419446654 | P91: =LN(J91/J90) -> -0.006256537614
D92: 2000-12-08 | E92: 7995.8 | F92: 86.85 | G92: 186.7 | H92: 165.9 | I92: 69.45 | J92: 71.9 | K92: =LN(E92/E91) -> -0.006817797484 | L92: =LN(F92/F91) -> 0.05138419935 | M92: =LN(G92/G91) -> -0.03732364891 | N92: =LN(H92/H91) -> -0.0419063973 | O92: =LN(I92/I91) -> -0.01358619396 | P92: =LN(J92/J91) -> 0.002785517121
D93: 2000-12-15 | E93: 7867 | F93: 84.85 | G93: 187 | H93: 164.45 | I93: 69 | J93: 68.5 | K93: =LN(E93/E92) -> -0.01623960847 | L93: =LN(F93/F92) -> -0.02329750101 | M93: =LN(G93/G92) -> 0.001605566307 | N93: =LN(H93/H92) -> -0.008778624561 | O93: =LN(I93/I92) -> -0.006500564603 | P93: =LN(J93/J92) -> -0.04844251946
D94: 2000-12-22 | E94: 7978.3 | F94: 87.35 | G94: 192.55 | H94: 161.5 | I94: 69.55 | J94: 69.05 | K94: =LN(E94/E93) -> 0.01404856084 | L94: =LN(F94/F93) -> 0.0290380449 | M94: =LN(G94/G93) -> 0.02924724341 | N94: =LN(H94/H93) -> -0.01810142997 | O94: =LN(I94/I93) -> 0.007939413772 | P94: =LN(J94/J93) -> 0.007997134587
D95: 2000-12-29 | E95: 8135.4 | F95: 88.15 | G95: 193.8 | H95: 165.1 | I95: 71.65 | J95: 70.3 | K95: =LN(E95/E94) -> 0.01949955353 | L95: =LN(F95/F94) -> 0.009116872264 | M95: =LN(G95/G94) -> 0.006470839196 | N95: =LN(H95/H94) -> 0.02204620826 | O95: =LN(I95/I94) -> 0.0297472359 | P95: =LN(J95/J94) -> 0.01794091896
D96: 2001-01-05 | E96: 7985.6 | F96: 93 | G96: 190.95 | H96: 160.45 | I96: 68.4 | J96: 71.7 | K96: =LN(E96/E95) -> -0.01858498998 | L96: =LN(F96/F95) -> 0.05355958431 | M96: =LN(G96/G95) -> -0.01481508579 | N96: =LN(H96/H95) -> -0.02856898337 | O96: =LN(I96/I95) -> -0.04642032965 | P96: =LN(J96/J95) -> 0.01971894879
D97: 2001-01-12 | E97: 7848.2 | F97: 91.85 | G97: 184.15 | H97: 152.55 | I97: 66.75 | J97: 76.25 | K97: =LN(E97/E96) -> -0.0173557136 | L97: =LN(F97/F96) -> -0.01244268149 | M97: =LN(G97/G96) -> -0.03626097078 | N97: =LN(H97/H96) -> -0.05048995639 | O97: =LN(I97/I96) -> -0.02441852735 | P97: =LN(J97/J96) -> 0.06152666788
D98: 2001-01-19 | E98: 7862.4 | F98: 94.5 | G98: 177.55 | H98: 149.8 | I98: 66.25 | J98: 76 | K98: =LN(E98/E97) -> 0.001807697207 | L98: =LN(F98/F97) -> 0.02844302284 | M98: =LN(G98/G97) -> -0.0364983835 | N98: =LN(H98/H97) -> -0.01819134008 | O98: =LN(I98/I97) -> -0.007518832414 | P98: =LN(J98/J97) -> -0.003284075201
D99: 2001-01-26 | E99: 8041.4 | F99: 94.5 | G99: 189.85 | H99: 153.65 | I99: 69.4 | J99: 77.5 | K99: =LN(E99/E98) -> 0.02251129404 | L99: =LN(F99/F98) -> 0 | M99: =LN(G99/G98) -> 0.06698202729 | N99: =LN(H99/H98) -> 0.02537621749 | O99: =LN(I99/I98) -> 0.04645140265 | P99: =LN(J99/J98) -> 0.01954459607
D100: 2001-02-02 | E100: 8007.5 | F100: 95.65 | G100: 185.6 | H100: 151 | I100: 69.3 | J100: 78.85 | K100: =LN(E100/E99) -> -0.004224594884 | L100: =LN(F100/F99) -> 0.01209586139 | M100: =LN(G100/G99) -> -0.02264046633 | N100: =LN(H100/H99) -> -0.01739745176 | O100: =LN(I100/I99) -> -0.001441961317 | P100: =LN(J100/J99) -> 0.01726937705
D101: 2001-02-09 | E101: 7920.1 | F101: 94.5 | G101: 184.6 | H101: 156.2 | I101: 69.25 | J101: 76.25 | K101: =LN(E101/E100) -> -0.01097477049 | L101: =LN(F101/F100) -> -0.01209586139 | M101: =LN(G101/G100) -> -0.005402498283 | N101: =LN(H101/H100) -> 0.03385740059 | O101: =LN(I101/I100) -> -0.0007217611284 | P101: =LN(J101/J100) -> -0.03352989792
D102: 2001-02-16 | E102: 7757.4 | F102: 91.65 | G102: 181.75 | H102: 152.45 | I102: 70.25 | J102: 72.25 | K102: =LN(E102/E101) -> -0.0207566055 | L102: =LN(F102/F101) -> -0.03062286021 | M102: =LN(G102/G101) -> -0.01555920566 | N102: =LN(H102/H101) -> -0.02430056397 | O102: =LN(I102/I101) -> 0.01433716315 | P102: =LN(J102/J101) -> -0.05388508849
D103: 2001-02-23 | E103: 7607.2 | F103: 86.35 | G103: 172.1 | H103: 150 | I103: 69.2 | J103: 68.5 | K103: =LN(E103/E102) -> -0.01955205926 | L103: =LN(F103/F102) -> -0.05956816969 | M103: =LN(G103/G102) -> -0.0545564132 | N103: =LN(H103/H102) -> -0.01620137934 | O103: =LN(I103/I102) -> -0.01505944559 | P103: =LN(J103/J102) -> -0.05329858172
D104: 2001-03-02 | E104: 7533.5 | F104: 85 | G104: 174.7 | H104: 135.35 | I104: 71.6 | J104: 66.75 | K104: =LN(E104/E103) -> -0.009735425984 | L104: =LN(F104/F103) -> -0.0157575481 | M104: =LN(G104/G103) -> 0.01499451392 | N104: =LN(H104/H103) -> -0.102771278 | O104: =LN(I104/I103) -> 0.03409421134 | P104: =LN(J104/J103) -> -0.02587944799
D105: 2001-03-09 | E105: 7535.4 | F105: 90.15 | G105: 166.7 | H105: 136.5 | I105: 69.25 | J105: 67.55 | K105: =LN(E105/E104) -> 0.0002521750108 | L105: =LN(F105/F104) -> 0.05882369316 | M105: =LN(G105/G104) -> -0.04687442738 | N105: =LN(H105/H104) -> 0.008460598565 | O105: =LN(I105/I104) -> -0.0333719289 | P105: =LN(J105/J104) -> 0.01191376713
D106: 2001-03-16 | E106: 7112.6 | F106: 80.15 | G106: 159.9 | H106: 129.6 | I106: 67.25 | J106: 66.2 | K106: =LN(E106/E105) -> -0.05774405716 | L106: =LN(F106/F105) -> -0.1175750706 | M106: =LN(G106/G105) -> -0.04164716992 | N106: =LN(H106/H105) -> -0.05187183071 | O106: =LN(I106/I105) -> -0.02930612659 | P106: =LN(J106/J105) -> -0.02018760146
D107: 2001-03-23 | E107: 6736.1 | F107: 77.1 | G107: 158.7 | H107: 117.15 | I107: 64.65 | J107: 66.1 | K107: =LN(E107/E106) -> -0.05438673667 | L107: =LN(F107/F106) -> -0.03879659849 | M107: =LN(G107/G106) -> -0.007532992308 | N107: =LN(H107/H106) -> -0.100997619 | O107: =LN(I107/I106) -> -0.03942891326 | P107: =LN(J107/J106) -> -0.001511716085
D108: 2001-03-30 | E108: 7167.8 | F108: 83.15 | G108: 174.1 | H108: 125 | I108: 67.75 | J108: 69.75 | K108: =LN(E108/E107) -> 0.06211765106 | L108: =LN(F108/F107) -> 0.07554292507 | M108: =LN(G108/G107) -> 0.09261421924 | N108: =LN(H108/H107) -> 0.06485857235 | O108: =LN(I108/I107) -> 0.04683635454 | P108: =LN(J108/J107) -> 0.05374867384
D109: 2001-04-06 | E109: 6954.9 | F109: 78.15 | G109: 172.6 | H109: 118.85 | I109: 67.6 | J109: 67.1 | K109: =LN(E109/E108) -> -0.03015232637 | L109: =LN(F109/F108) -> -0.06201614877 | M109: =LN(G109/G108) -> -0.008653068125 | N109: =LN(H109/H108) -> -0.0504515435 | O109: =LN(I109/I108) -> -0.002216476711 | P109: =LN(J109/J108) -> -0.03873337672
D110: 2001-04-13 | E110: 7247 | F110: 85.5 | G110: 178.6 | H110: 122.2 | I110: 69.45 | J110: 70.65 | K110: =LN(E110/E109) -> 0.041141143 | L110: =LN(F110/F109) -> 0.08988631908 | M110: =LN(G110/G109) -> 0.03417188979 | N110: =LN(H110/H109) -> 0.02779685293 | O110: =LN(I110/I109) -> 0.02699908615 | P110: =LN(J110/J109) -> 0.05155406515
D111: 2001-04-20 | E111: 7239.3 | F111: 88.15 | G111: 167.7 | H111: 125 | I111: 67.75 | J111: 73.6 | K111: =LN(E111/E110) -> -0.001063073487 | L111: =LN(F111/F110) -> 0.0305235329 | M111: =LN(G111/G110) -> -0.06297199961 | N111: =LN(H111/H110) -> 0.02265469056 | O111: =LN(I111/I110) -> -0.02478260944 | P111: =LN(J111/J110) -> 0.0409069166
D112: 2001-04-27 | E112: 7248.7 | F112: 86.65 | G112: 169.55 | H112: 121.5 | I112: 67.15 | J112: 72.7 | K112: =LN(E112/E111) -> 0.001297625803 | L112: =LN(F112/F111) -> -0.01716289268 | M112: =LN(G112/G111) -> 0.01097119974 | N112: =LN(H112/H111) -> -0.02839947452 | O112: =LN(I112/I111) -> -0.008895536791 | P112: =LN(J112/J111) -> -0.0123036412
D113: 2001-05-04 | E113: 7365.6 | F113: 85.35 | G113: 170.1 | H113: 132.5 | I113: 67 | J113: 73.15 | K113: =LN(E113/E112) -> 0.01599837055 | L113: =LN(F113/F112) -> -0.01511656692 | M113: =LN(G113/G112) -> 0.00323863083 | N113: =LN(H113/H112) -> 0.08666838265 | O113: =LN(I113/I112) -> -0.002236303578 | P113: =LN(J113/J112) -> 0.006170742927
D114: 2001-05-11 | E114: 7518.8 | F114: 84.65 | G114: 174.85 | H114: 141.5 | I114: 70.6 | J114: 74.75 | K114: =LN(E114/E113) -> 0.02058603777 | L114: =LN(F114/F113) -> -0.008235340661 | M114: =LN(G114/G113) -> 0.02754196411 | N114: =LN(H114/H113) -> 0.06571707166 | O114: =LN(I114/I113) -> 0.05233752511 | P114: =LN(J114/J113) -> 0.0216370848
D115: 2001-05-18 | E115: 7658.2 | F115: 89.65 | G115: 174.6 | H115: 138.75 | I115: 71.25 | J115: 75.35 | K115: =LN(E115/E114) -> 0.01837041843 | L115: =LN(F115/F114) -> 0.05738809147 | M115: =LN(G115/G114) -> -0.001430820104 | N115: =LN(H115/H114) -> -0.01962596446 | O115: =LN(I115/I114) -> 0.00916467465 | P115: =LN(J115/J114) -> 0.007994712802
D116: 2001-05-25 | E116: 7671.9 | F116: 92 | G116: 174.9 | H116: 137.5 | I116: 71.5 | J116: 75.8 | K116: =LN(E116/E115) -> 0.001787333892 | L116: =LN(F116/F115) -> 0.025875377 | M116: =LN(G116/G115) -> 0.001716738619 | N116: =LN(H116/H115) -> -0.00904983552 | O116: =LN(I116/I115) -> 0.003502630551 | P116: =LN(J116/J115) -> 0.005954367576
D117: 2001-06-01 | E117: 7478.4 | F117: 89.85 | G117: 177.5 | H117: 137 | I117: 68.75 | J117: 74.4 | K117: =LN(E117/E116) -> -0.02554543772 | L117: =LN(F117/F116) -> -0.02364696382 | M117: =LN(G117/G116) -> 0.01475622689 | N117: =LN(H117/H116) -> -0.003642991279 | O117: =LN(I117/I116) -> -0.03922071315 | P117: =LN(J117/J116) -> -0.01864235081
D118: 2001-06-08 | E118: 7547.6 | F118: 88.65 | G118: 176.5 | H118: 135.25 | I118: 69.95 | J118: 72.95 | K118: =LN(E118/E117) -> 0.009210766569 | L118: =LN(F118/F117) -> -0.01344558071 | M118: =LN(G118/G117) -> -0.005649732542 | N118: =LN(H118/H117) -> -0.0128560081 | O118: =LN(I118/I117) -> 0.01730396456 | P118: =LN(J118/J117) -> -0.01968166687
D119: 2001-06-15 | E119: 7328.2 | F119: 83.65 | G119: 173.9 | H119: 133 | I119: 67.5 | J119: 69.05 | K119: =LN(E119/E118) -> -0.02949971236 | L119: =LN(F119/F118) -> -0.05805460509 | M119: =LN(G119/G118) -> -0.01484045501 | N119: =LN(H119/H118) -> -0.0167757895 | O119: =LN(I119/I118) -> -0.03565310323 | P119: =LN(J119/J118) -> -0.05494339511
D120: 2001-06-22 | E120: 7161.2 | F120: 85.35 | G120: 177.4 | H120: 127.25 | I120: 62.35 | J120: 70.75 | K120: =LN(E120/E119) -> -0.02305235488 | L120: =LN(F120/F119) -> 0.02011902181 | M120: =LN(G120/G119) -> 0.01992664852 | N120: =LN(H120/H119) -> -0.04419547279 | O120: =LN(I120/I119) -> -0.07936392575 | P120: =LN(J120/J119) -> 0.02432165667
D121: 2001-06-29 | E121: 7240.2 | F121: 85.85 | G121: 179.2 | H121: 129.5 | I121: 65.05 | J121: 67.45 | K121: =LN(E121/E120) -> 0.01097126563 | L121: =LN(F121/F120) -> 0.005841138103 | M121: =LN(G121/G120) -> 0.01009543067 | N121: =LN(H121/H120) -> 0.01752722571 | O121: =LN(I121/I120) -> 0.04239253283 | P121: =LN(J121/J120) -> -0.04776595387
D122: 2001-07-06 | E122: 6971.9 | F122: 81.65 | G122: 179.6 | H122: 127.25 | I122: 61.8 | J122: 64.7 | K122: =LN(E122/E121) -> -0.03776104586 | L122: =LN(F122/F121) -> -0.05015976793 | M122: =LN(G122/G121) -> 0.002229655327 | N122: =LN(H122/H121) -> -0.01752722571 | O122: =LN(I122/I121) -> -0.05125284049 | P122: =LN(J122/J121) -> -0.04162538115
D123: 2001-07-13 | E123: 6941.3 | F123: 81 | G123: 178.2 | H123: 132.5 | I123: 60 | J123: 66.9 | K123: =LN(E123/E122) -> -0.004398707607 | L123: =LN(F123/F122) -> -0.007992664744 | M123: =LN(G123/G122) -> -0.007825640831 | N123: =LN(H123/H122) -> 0.04042899 | O123: =LN(I123/I122) -> -0.02955880224 | P123: =LN(J123/J122) -> 0.03343776563
D124: 2001-07-20 | E124: 6930 | F124: 76.75 | G124: 178.1 | H124: 135.25 | I124: 60.5 | J124: 67.45 | K124: =LN(E124/E123) -> -0.001629263659 | L124: =LN(F124/F123) -> -0.05389576821 | M124: =LN(G124/G123) -> -0.0005613247411 | N124: =LN(H124/H123) -> 0.0205422723 | O124: =LN(I124/I123) -> 0.008298802815 | P124: =LN(J124/J123) -> 0.00818761552
D125: 2001-07-27 | E125: 6760.8 | F125: 77.6 | G125: 178.1 | H125: 130.25 | I125: 58.9 | J125: 65.3 | K125: =LN(E125/E124) -> -0.02471858695 | L125: =LN(F125/F124) -> 0.01101404072 | M125: =LN(G125/G124) -> 0 | N125: =LN(H125/H124) -> -0.03766923709 | O125: =LN(I125/I124) -> -0.02680227438 | P125: =LN(J125/J124) -> -0.03239454637
D126: 2001-08-03 | E126: 6877.8 | F126: 77.55 | G126: 181.5 | H126: 132.5 | I126: 60.2 | J126: 66.45 | K126: =LN(E126/E125) -> 0.01715760712 | L126: =LN(F126/F125) -> -0.0006445375666 | M126: =LN(G126/G125) -> 0.01891046341 | N126: =LN(H126/H125) -> 0.01712696479 | O126: =LN(I126/I125) -> 0.02183126166 | P126: =LN(J126/J125) -> 0.01745774888
D127: 2001-08-10 | E127: 6623.4 | F127: 75.2 | G127: 181.5 | H127: 127.75 | I127: 56.5 | J127: 63.7 | K127: =LN(E127/E126) -> -0.0376900001 | L127: =LN(F127/F126) -> -0.03077165867 | M127: =LN(G127/G126) -> 0 | N127: =LN(H127/H126) -> -0.03650741634 | O127: =LN(I127/I126) -> -0.06343171416 | P127: =LN(J127/J126) -> -0.04226522258
D128: 2001-08-17 | E128: 6660 | F128: 79 | G128: 179.25 | H128: 126 | I128: 59 | J128: 65.25 | K128: =LN(E128/E127) -> 0.005510651282 | L128: =LN(F128/F127) -> 0.04929662151 | M128: =LN(G128/G127) -> -0.01247417423 | N128: =LN(H128/H127) -> -0.01379332213 | O128: =LN(I128/I127) -> 0.04329680575 | P128: =LN(J128/J127) -> 0.02404148362
D129: 2001-08-24 | E129: 6718 | F129: 82.1 | G129: 168.25 | H129: 124 | I129: 61.35 | J129: 67.55 | K129: =LN(E129/E128) -> 0.008671006638 | L129: =LN(F129/F128) -> 0.03849016399 | M129: =LN(G129/G128) -> -0.06333051095 | N129: =LN(H129/H128) -> -0.01600034135 | O129: =LN(I129/I128) -> 0.03905772725 | P129: =LN(J129/J128) -> 0.0346420182
D130: 2001-08-31 | E130: 6582.4 | F130: 81.4 | G130: 166 | H130: 119.5 | I130: 60.85 | J130: 66.6 | K130: =LN(E130/E129) -> -0.02039107071 | L130: =LN(F130/F129) -> -0.00856274345 | M130: =LN(G130/G129) -> -0.01346318017 | N130: =LN(H130/H129) -> -0.03696519423 | O130: =LN(I130/I129) -> -0.008183351723 | P130: =LN(J130/J129) -> -0.01416348686
D131: 2001-09-07 | E131: 6255.5 | F131: 76.7 | G131: 152.75 | H131: 117.75 | I131: 59.9 | J131: 59.95 | K131: =LN(E131/E130) -> -0.0509383437 | L131: =LN(F131/F130) -> -0.05947356464 | M131: =LN(G131/G130) -> -0.0831851903 | N131: =LN(H131/H130) -> -0.01475263848 | O131: =LN(I131/I130) -> -0.01573531431 | P131: =LN(J131/J130) -> -0.1051936961
D132: 2001-09-14 | E132: 5628.3 | F132: 64.1 | G132: 139.5 | H132: 107.75 | I132: 56.8 | J132: 46.95 | K132: =LN(E132/E131) -> -0.105653634 | L132: =LN(F132/F131) -> -0.1794573444 | M132: =LN(G132/G131) -> -0.09073799679 | N132: =LN(H132/H131) -> -0.08875000391 | O132: =LN(I132/I131) -> -0.05314017939 | P132: =LN(J132/J131) -> -0.2444276758
D133: 2001-09-21 | E133: 5110.2 | F133: 62.1 | G133: 129.5 | H133: 95.1 | I133: 54.95 | J133: 42.05 | K133: =LN(E133/E132) -> -0.09656890034 | L133: =LN(F133/F132) -> -0.03169837499 | M133: =LN(G133/G132) -> -0.07438372012 | N133: =LN(H133/H132) -> -0.1248847594 | O133: =LN(I133/I132) -> -0.03311264488 | P133: =LN(J133/J132) -> -0.1102238192
D134: 2001-09-28 | E134: 6014.2 | F134: 75.6 | G134: 159 | H134: 116 | I134: 63.3 | J134: 53.05 | K134: =LN(E134/E133) -> 0.1628847974 | L134: =LN(F134/F133) -> 0.1967102942 | M134: =LN(G134/G133) -> 0.2052233211 | N134: =LN(H134/H133) -> 0.1986612216 | O134: =LN(I134/I133) -> 0.1414616483 | P134: =LN(J134/J133) -> 0.2323754786
D135: 2001-10-05 | E135: 5954.9 | F135: 72 | G135: 160 | H135: 116.75 | I135: 62.95 | J135: 50.95 | K135: =LN(E135/E134) -> -0.009908929695 | L135: =LN(F135/F134) -> -0.04879016417 | M135: =LN(G135/G134) -> 0.006269613014 | N135: =LN(H135/H134) -> 0.006444705443 | O135: =LN(I135/I134) -> -0.00554456866 | P135: =LN(J135/J134) -> -0.04039010539
D136: 2001-10-12 | E136: 6039.4 | F136: 73 | G136: 164 | H136: 121.5 | I136: 63.7 | J136: 52.05 | K136: =LN(E136/E135) -> 0.01409025921 | L136: =LN(F136/F135) -> 0.01379332213 | M136: =LN(G136/G135) -> 0.02469261259 | N136: =LN(H136/H135) -> 0.03987936623 | O136: =LN(I136/I135) -> 0.01184380209 | P136: =LN(J136/J135) -> 0.02136003539
D137: 2001-10-19 | E137: 6070.3 | F137: 74.75 | G137: 166 | H137: 115.25 | I137: 64.35 | J137: 52.5 | K137: =LN(E137/E136) -> 0.00510335798 | L137: =LN(F137/F136) -> 0.02368977112 | M137: =LN(G137/G136) -> 0.01212136053 | N137: =LN(H137/H136) -> -0.0528105809 | O137: =LN(I137/I136) -> 0.01015237146 | P137: =LN(J137/J136) -> 0.008608374537
D138: 2001-10-26 | E138: 6256.7 | F138: 79.05 | G138: 175.25 | H138: 117.5 | I138: 63 | J138: 56.4 | K138: =LN(E138/E137) -> 0.03024486232 | L138: =LN(F138/F137) -> 0.05593135138 | M138: =LN(G138/G137) -> 0.05422573756 | N138: =LN(H138/H137) -> 0.01933465171 | O138: =LN(I138/I137) -> -0.02120220765 | P138: =LN(J138/J137) -> 0.07165598891
D139: 2001-11-02 | E139: 6125.2 | F139: 77.3 | G139: 168.5 | H139: 111.5 | I139: 61.35 | J139: 56.3 | K139: =LN(E139/E138) -> -0.02124148061 | L139: =LN(F139/F138) -> -0.02238660806 | M139: =LN(G139/G138) -> -0.03927777612 | N139: =LN(H139/H138) -> -0.05241374268 | O139: =LN(I139/I138) -> -0.02653955523 | P139: =LN(J139/J138) -> -0.001774623358
D140: 2001-11-09 | E140: 6341 | F140: 82.45 | G140: 174 | H140: 112.75 | I140: 63 | J140: 60.25 | K140: =LN(E140/E139) -> 0.03462507576 | L140: =LN(F140/F139) -> 0.06449809341 | M140: =LN(G140/G139) -> 0.03211954942 | N140: =LN(H140/H139) -> 0.01114838748 | O140: =LN(I140/I139) -> 0.02653955523 | P140: =LN(J140/J139) -> 0.06780803723
D141: 2001-11-16 | E141: 6565 | F141: 84.5 | G141: 167 | H141: 120.25 | I141: 63.15 | J141: 65.65 | K141: =LN(E141/E140) -> 0.03471602304 | L141: =LN(F141/F140) -> 0.02455948536 | M141: =LN(G141/G140) -> -0.0410614868 | N141: =LN(H141/H140) -> 0.0643999306 | O141: =LN(I141/I140) -> 0.002378122405 | P141: =LN(J141/J140) -> 0.08583502838
D142: 2001-11-23 | E142: 6458.8 | F142: 84.55 | G142: 167.75 | H142: 124.5 | I142: 60.65 | J142: 61.95 | K142: =LN(E142/E141) -> -0.01630896573 | L142: =LN(F142/F141) -> 0.0005915409815 | M142: =LN(G142/G141) -> 0.004480963435 | N142: =LN(H142/H141) -> 0.03473280692 | O142: =LN(I142/I141) -> -0.04039321341 | P142: =LN(J142/J141) -> -0.05800999267
D143: 2001-11-30 | E143: 6237 | F143: 81.75 | G143: 166 | H143: 117.75 | I143: 57.8 | J143: 59.6 | K143: =LN(E143/E142) -> -0.03494424448 | L143: =LN(F143/F142) -> -0.03367726557 | M143: =LN(G143/G142) -> -0.0104869875 | N143: =LN(H143/H142) -> -0.05574198301 | O143: =LN(I143/I142) -> -0.04813085971 | P143: =LN(J143/J142) -> -0.038672034
D144: 2001-12-07 | E144: 6443.7 | F144: 86.75 | G144: 171.75 | H144: 116.25 | I144: 58.3 | J144: 64.65 | K144: =LN(E144/E143) -> 0.03260361175 | L144: =LN(F144/F143) -> 0.05936460905 | M144: =LN(G144/G143) -> 0.03405214275 | N144: =LN(H144/H143) -> -0.01282068843 | O144: =LN(I144/I143) -> 0.008613317678 | P144: =LN(J144/J143) -> 0.08133253115
D145: 2001-12-14 | E145: 6184.3 | F145: 84.3 | G145: 165.5 | H145: 112.5 | I145: 56 | J145: 63.15 | K145: =LN(E145/E144) -> -0.0410890869 | L145: =LN(F145/F144) -> -0.02864855382 | M145: =LN(G145/G144) -> -0.03706873629 | N145: =LN(H145/H144) -> -0.03278982282 | O145: =LN(I145/I144) -> -0.04025040262 | P145: =LN(J145/J144) -> -0.02347525642
D146: 2001-12-21 | E146: 6364.6 | F146: 83.2 | G146: 170 | H146: 118 | I146: 58.9 | J146: 66.15 | K146: =LN(E146/E145) -> 0.02873756396 | L146: =LN(F146/F145) -> -0.01313451718 | M146: =LN(G146/G145) -> 0.02682724223 | N146: =LN(H146/H145) -> 0.04773140282 | O146: =LN(I146/I145) -> 0.05048939992 | P146: =LN(J146/J145) -> 0.04641204176
D147: 2001-12-28 | E147: 6417.8 | F147: 83.8 | G147: 167 | H147: 118.5 | I147: 60 | J147: 66.45 | K147: =LN(E147/E146) -> 0.008323993488 | L147: =LN(F147/F146) -> 0.007185659661 | M147: =LN(G147/G146) -> -0.01780462463 | N147: =LN(H147/H146) -> 0.00422833611 | O147: =LN(I147/I146) -> 0.01850347156 | P147: =LN(J147/J146) -> 0.004524894598
D148: 2002-01-04 | E148: 6392.9 | F148: 83.2 | G148: 167.75 | H148: 114.75 | I148: 57.15 | J148: 68 | K148: =LN(E148/E147) -> -0.003887380293 | L148: =LN(F148/F147) -> -0.007185659661 | M148: =LN(G148/G147) -> 0.004480963435 | N148: =LN(H148/H147) -> -0.03215711163 | O148: =LN(I148/I147) -> -0.04866517198 | P148: =LN(J148/J147) -> 0.02305792002
D149: 2002-01-11 | E149: 6416.4 | F149: 83.95 | G149: 162.5 | H149: 114.25 | I149: 58.55 | J149: 68.9 | K149: =LN(E149/E148) -> 0.003669213207 | L149: =LN(F149/F148) -> 0.008974035696 | M149: =LN(G149/G148) -> -0.03179677408 | N149: =LN(H149/H148) -> -0.004366819166 | O149: =LN(I149/I148) -> 0.0242016998 | P149: =LN(J149/J148) -> 0.01314847284
D150: 2002-01-18 | E150: 6294.2 | F150: 79.95 | G150: 159.5 | H150: 112.5 | I150: 57.7 | J150: 66.25 | K150: =LN(E150/E149) -> -0.01922863833 | L150: =LN(F150/F149) -> -0.04881994424 | M150: =LN(G150/G149) -> -0.01863407954 | N150: =LN(H150/H149) -> -0.01543580813 | O150: =LN(I150/I149) -> -0.01462391653 | P150: =LN(J150/J149) -> -0.03922071315
D151: 2002-01-25 | E151: 6372.1 | F151: 80.5 | G151: 155.75 | H151: 114.5 | I151: 58.7 | J151: 65.7 | K151: =LN(E151/E150) -> 0.01230051115 | L151: =LN(F151/F150) -> 0.006855745145 | M151: =LN(G151/G150) -> -0.02379176456 | N151: =LN(H151/H150) -> 0.01762160135 | O151: =LN(I151/I150) -> 0.01718255332 | P151: =LN(J151/J150) -> -0.008336539376
D152: 2002-02-01 | E152: 6234.6 | F152: 78.8 | G152: 150.25 | H152: 114.25 | I152: 58.75 | J152: 60.85 | K152: =LN(E152/E151) -> -0.02181466248 | L152: =LN(F152/F151) -> -0.02134418756 | M152: =LN(G152/G151) -> -0.03595158425 | N152: =LN(H152/H151) -> -0.00218579322 | O152: =LN(I152/I151) -> 0.0008514261902 | P152: =LN(J152/J151) -> -0.07668710606
D153: 2002-02-08 | E153: 6245.5 | F153: 76.7 | G153: 153 | H153: 116.75 | I153: 61.55 | J153: 58.5 | K153: =LN(E153/E152) -> 0.001746781319 | L153: =LN(F153/F152) -> -0.02701128849 | M153: =LN(G153/G152) -> 0.01813734798 | N153: =LN(H153/H152) -> 0.02164586677 | O153: =LN(I153/I152) -> 0.04655869961 | P153: =LN(J153/J152) -> -0.0393850652
D154: 2002-02-15 | E154: 6414.4 | F154: 81.3 | G154: 157.5 | H154: 119.25 | I154: 63.5 | J154: 58.5 | K154: =LN(E154/E153) -> 0.02668425848 | L154: =LN(F154/F153) -> 0.05824430818 | M154: =LN(G154/G153) -> 0.02898753687 | N154: =LN(H154/H153) -> 0.02118723322 | O154: =LN(I154/I153) -> 0.03119005327 | P154: =LN(J154/J153) -> 0
D155: 2002-02-22 | E155: 6186.5 | F155: 77.6 | G155: 145.5 | H155: 115 | I155: 62.7 | J155: 53.05 | K155: =LN(E155/E154) -> -0.03617596423 | L155: =LN(F155/F154) -> -0.04657858936 | M155: =LN(G155/G154) -> -0.07924937165 | N155: =LN(H155/H154) -> -0.03629000141 | O155: =LN(I155/I154) -> -0.01267845826 | P155: =LN(J155/J154) -> -0.09779188918
D156: 2002-03-01 | E156: 6349 | F156: 79.2 | G156: 153.25 | H156: 122.5 | I156: 64.25 | J156: 54.45 | K156: =LN(E156/E155) -> 0.02592782152 | L156: =LN(F156/F155) -> 0.02040887163 | M156: =LN(G156/G155) -> 0.0518944882 | N156: =LN(H156/H155) -> 0.06317890162 | O156: =LN(I156/I155) -> 0.02442027614 | P156: =LN(J156/J155) -> 0.02604798432
D157: 2002-03-08 | E157: 6531.2 | F157: 84.3 | G157: 160 | H157: 122.5 | I157: 62.3 | J157: 60.55 | K157: =LN(E157/E156) -> 0.02829337345 | L157: =LN(F157/F156) -> 0.06240556619 | M157: =LN(G157/G156) -> 0.04310324042 | N157: =LN(H157/H156) -> 0 | O157: =LN(I157/I156) -> -0.03082029798 | P157: =LN(J157/J156) -> 0.1061866206
D158: 2002-03-15 | E158: 6571.3 | F158: 82.75 | G158: 159.75 | H158: 129 | I158: 65.5 | J158: 59.45 | K158: =LN(E158/E157) -> 0.006120988392 | L158: =LN(F158/F157) -> -0.01855785075 | M158: =LN(G158/G157) -> -0.001563721976 | N158: =LN(H158/H157) -> 0.05170137438 | O158: =LN(I158/I157) -> 0.05008871685 | P158: =LN(J158/J157) -> -0.01833384686
D159: 2002-03-22 | E159: 6615.8 | F159: 83.2 | G159: 155 | H159: 129 | I159: 66.55 | J159: 59.7 | K159: =LN(E159/E158) -> 0.006749045493 | L159: =LN(F159/F158) -> 0.00542333357 | M159: =LN(G159/G158) -> -0.03018497634 | N159: =LN(H159/H158) -> 0 | O159: =LN(I159/I158) -> 0.0159034022 | P159: =LN(J159/J158) -> 0.004196397262
D160: 2002-03-29 | E160: 6655.2 | F160: 82.8 | G160: 154.75 | H160: 130.75 | I160: 66.15 | J160: 59.85 | K160: =LN(E160/E159) -> 0.005937776469 | L160: =LN(F160/F159) -> -0.004819286436 | M160: =LN(G160/G159) -> -0.001614205355 | N160: =LN(H160/H159) -> 0.01347469858 | O160: =LN(I160/I159) -> -0.00602865428 | P160: =LN(J160/J159) -> 0.002509411605
D161: 2002-04-05 | E161: 6662.1 | F161: 83.75 | G161: 157.25 | H161: 131 | I161: 65 | J161: 59.5 | K161: =LN(E161/E160) -> 0.001036246179 | L161: =LN(F161/F160) -> 0.01140810931 | M161: =LN(G161/G160) -> 0.01602598402 | N161: =LN(H161/H160) -> 0.001910220256 | O161: =LN(I161/I160) -> -0.01753762067 | P161: =LN(J161/J160) -> -0.005865119452
D162: 2002-04-12 | E162: 6593 | F162: 81.65 | G162: 162.75 | H162: 126.25 | I162: 65.2 | J162: 56.05 | K162: =LN(E162/E161) -> -0.01042627004 | L162: =LN(F162/F161) -> -0.02539435129 | M162: =LN(G162/G161) -> 0.03437838551 | N162: =LN(H162/H161) -> -0.03693325505 | O162: =LN(I162/I161) -> 0.003072199037 | P162: =LN(J162/J161) -> -0.05973216303
D163: 2002-04-19 | E163: 6676.7 | F163: 81.6 | G163: 168.25 | H163: 125.5 | I163: 67 | J163: 57.4 | K163: =LN(E163/E162) -> 0.01261537338 | L163: =LN(F163/F162) -> -0.0006125574464 | M163: =LN(G163/G162) -> 0.03323568744 | N163: =LN(H163/H162) -> -0.005958309584 | O163: =LN(I163/I162) -> 0.02723315046 | P163: =LN(J163/J162) -> 0.02380015381
D164: 2002-04-26 | E164: 6530.1 | F164: 77.55 | G164: 161.5 | H164: 123.25 | I164: 68.3 | J164: 53.1 | K164: =LN(E164/E163) -> -0.0222015964 | L164: =LN(F164/F163) -> -0.05090637235 | M164: =LN(G164/G163) -> -0.04094582586 | N164: =LN(H164/H163) -> -0.01809094565 | O164: =LN(I164/I163) -> 0.01921714719 | P164: =LN(J164/J163) -> -0.07786737508
D165: 2002-05-03 | E165: 6598.7 | F165: 77.7 | G165: 165 | H165: 122.25 | I165: 68.5 | J165: 53.5 | K165: =LN(E165/E164) -> 0.01045040283 | L165: =LN(F165/F164) -> 0.001932367751 | M165: =LN(G165/G164) -> 0.02144033124 | N165: =LN(H165/H164) -> -0.008146684568 | O165: =LN(I165/I164) -> 0.002923978691 | P165: =LN(J165/J164) -> 0.007504725654
D166: 2002-05-10 | E166: 6533.1 | F166: 77.3 | G166: 164.75 | H166: 121.75 | I166: 68 | J166: 52.75 | K166: =LN(E166/E165) -> -0.009991097289 | L166: =LN(F166/F165) -> -0.00516130178 | M166: =LN(G166/G165) -> -0.001516300518 | N166: =LN(H166/H165) -> -0.004098366392 | O166: =LN(I166/I165) -> -0.007326040092 | P166: =LN(J166/J165) -> -0.01411788155
D167: 2002-05-17 | E167: 6642.6 | F167: 81.5 | G167: 166.5 | H167: 124.75 | I167: 67.45 | J167: 55.9 | K167: =LN(E167/E166) -> 0.01662189047 | L167: =LN(F167/F166) -> 0.05290906465 | M167: =LN(G167/G166) -> 0.01056613604 | N167: =LN(H167/H166) -> 0.02434197267 | O167: =LN(I167/I166) -> -0.008121122522 | P167: =LN(J167/J166) -> 0.0580006078
D168: 2002-05-24 | E168: 6576 | F168: 80.95 | G168: 158 | H168: 124.5 | I168: 68 | J168: 55.5 | K168: =LN(E168/E167) -> -0.01007679536 | L168: =LN(F168/F167) -> -0.006771340123 | M168: =LN(G168/G167) -> -0.05240027639 | N168: =LN(H168/H167) -> -0.002006018727 | O168: =LN(I168/I167) -> 0.008121122522 | P168: =LN(J168/J167) -> -0.007181359409
D169: 2002-05-31 | E169: 6574.8 | F169: 81.95 | G169: 159.75 | H169: 125.75 | I169: 67.3 | J169: 54.3 | K169: =LN(E169/E168) -> -0.0001824984036 | L169: =LN(F169/F168) -> 0.01227762507 | M169: =LN(G169/G168) -> 0.01101506023 | N169: =LN(H169/H168) -> 0.009990093075 | O169: =LN(I169/I168) -> -0.01034746853 | P169: =LN(J169/J168) -> -0.02185879381
D170: 2002-06-07 | E170: 6250.9 | F170: 78.8 | G170: 152.5 | H170: 119.5 | I170: 63.15 | J170: 50.6 | K170: =LN(E170/E169) -> -0.05051870597 | L170: =LN(F170/F169) -> -0.03919630833 | M170: =LN(G170/G169) -> -0.04644549721 | N170: =LN(H170/H169) -> -0.05097943761 | O170: =LN(I170/I169) -> -0.06364738785 | P170: =LN(J170/J169) -> -0.07057265065
D171: 2002-06-14 | E171: 5980.7 | F171: 75.95 | G171: 145.5 | H171: 113 | I171: 60.05 | J171: 47.4 | K171: =LN(E171/E170) -> -0.04418783541 | L171: =LN(F171/F170) -> -0.03683776782 | M171: =LN(G171/G170) -> -0.04698850944 | N171: =LN(H171/H170) -> -0.05592855266 | O171: =LN(I171/I170) -> -0.05033530027 | P171: =LN(J171/J170) -> -0.06532934759
D172: 2002-06-21 | E172: 5791.6 | F172: 73 | G172: 135.25 | H172: 111.75 | I172: 59.9 | J172: 44.15 | K172: =LN(E172/E171) -> -0.03212902604 | L172: =LN(F172/F171) -> -0.03961578789 | M172: =LN(G172/G171) -> -0.07305116888 | N172: =LN(H172/H171) -> -0.01112358522 | O172: =LN(I172/I171) -> -0.002501043405 | P172: =LN(J172/J171) -> -0.07102930165
D173: 2002-06-28 | E173: 5979.7 | F173: 74.85 | G173: 145.5 | H173: 112.5 | I173: 65.45 | J173: 44.35 | K173: =LN(E173/E172) -> 0.03196180755 | L173: =LN(F173/F172) -> 0.02502666972 | M173: =LN(G173/G172) -> 0.07305116888 | N173: =LN(H173/H172) -> 0.006688988151 | O173: =LN(I173/I172) -> 0.08860998723 | P173: =LN(J173/J172) -> 0.004519781706
D174: 2002-07-05 | E174: 6024.2 | F174: 75.15 | G174: 144.25 | H174: 118.5 | I174: 65.2 | J174: 44.9 | K174: =LN(E174/E173) -> 0.007414290998 | L174: =LN(F174/F173) -> 0.004000005333 | M174: =LN(G174/G173) -> -0.008628181223 | N174: =LN(H174/H173) -> 0.05195973893 | O174: =LN(I174/I173) -> -0.003827023423 | P174: =LN(J174/J173) -> 0.01232508599
D175: 2002-07-12 | E175: 5604.7 | F175: 70.25 | G175: 128 | H175: 115.25 | I175: 61.15 | J175: 37.9 | K175: =LN(E175/E174) -> -0.07217915903 | L175: =LN(F175/F174) -> -0.06742580799 | M175: =LN(G175/G174) -> -0.1195176415 | N175: =LN(H175/H174) -> -0.0278092787 | O175: =LN(I175/I174) -> -0.0641296068 | P175: =LN(J175/J174) -> -0.1694866827
D176: 2002-07-19 | E176: 4976.3 | F176: 64 | G176: 119 | H176: 99.95 | I176: 50.5 | J176: 33.75 | K176: =LN(E176/E175) -> -0.1189188884 | L176: =LN(F176/F175) -> -0.09317722485 | M176: =LN(G176/G175) -> -0.07290677081 | N176: =LN(H176/H175) -> -0.1424336209 | O176: =LN(I176/I175) -> -0.1913565259 | P176: =LN(J176/J175) -> -0.1159706948
D177: 2002-07-26 | E177: 5023.6 | F177: 64 | G177: 119.25 | H177: 100.5 | I177: 58.15 | J177: 30 | K177: =LN(E177/E176) -> 0.009460165153 | L177: =LN(F177/F176) -> 0 | M177: =LN(G177/G176) -> 0.002098636657 | N177: =LN(H177/H176) -> 0.005487666553 | O177: =LN(I177/I176) -> 0.1410525427 | P177: =LN(J177/J176) -> -0.1177830357
D178: 2002-08-02 | E178: 5036.8 | F178: 60.7 | G178: 121.25 | H178: 103.75 | I178: 60.25 | J178: 30.55 | K178: =LN(E178/E177) -> 0.002624151639 | L178: =LN(F178/F177) -> -0.05293938529 | M178: =LN(G178/G177) -> 0.01663240005 | N178: =LN(H178/H177) -> 0.03182643161 | O178: =LN(I178/I177) -> 0.03547669341 | P178: =LN(J178/J177) -> 0.01816730396
D179: 2002-08-09 | E179: 5324 | F179: 65.5 | G179: 131.25 | H179: 109.25 | I179: 64.55 | J179: 31.4 | K179: =LN(E179/E178) -> 0.05545394073 | L179: =LN(F179/F178) -> 0.07610644458 | M179: =LN(G179/G178) -> 0.07924937165 | N179: =LN(H179/H178) -> 0.05165467486 | O179: =LN(I179/I178) -> 0.06893754492 | P179: =LN(J179/J178) -> 0.0274432073
D180: 2002-08-16 | E180: 5401.6 | F180: 69.7 | G180: 131.75 | H180: 112.75 | I180: 63.95 | J180: 33.95 | K180: =LN(E180/E179) -> 0.01447030545 | L180: =LN(F180/F179) -> 0.06215017513 | M180: =LN(G180/G179) -> 0.00380228595 | N180: =LN(H180/H179) -> 0.03153414441 | O180: =LN(I180/I179) -> -0.009338589268 | P180: =LN(J180/J179) -> 0.07808096109
D181: 2002-08-23 | E181: 5493.3 | F181: 73 | G181: 128.5 | H181: 113 | I181: 62.25 | J181: 36.8 | K181: =LN(E181/E180) -> 0.01683396185 | L181: =LN(F181/F180) -> 0.04625912338 | M181: =LN(G181/G180) -> -0.02497728309 | N181: =LN(H181/H180) -> 0.00221484033 | O181: =LN(I181/I180) -> -0.02694299268 | P181: =LN(J181/J180) -> 0.08060899117
D182: 2002-08-30 | E182: 5230.5 | F182: 70.7 | G182: 106 | H182: 107.75 | I182: 60.9 | J182: 34.9 | K182: =LN(E182/E181) -> -0.04902229203 | L182: =LN(F182/F181) -> -0.03201386825 | M182: =LN(G182/G181) -> -0.1924898102 | N182: =LN(H182/H181) -> -0.04757408973 | O182: =LN(I182/I181) -> -0.02192536063 | P182: =LN(J182/J181) -> -0.05301101597
D183: 2002-09-06 | E183: 5104.5 | F183: 67.25 | G183: 106 | H183: 105.25 | I183: 59.5 | J183: 32.45 | K183: =LN(E183/E182) -> -0.02438437217 | L183: =LN(F183/F182) -> -0.05002855442 | M183: =LN(G183/G182) -> 0 | N183: =LN(H183/H182) -> -0.02347525642 | O183: =LN(I183/I182) -> -0.02325686216 | P183: =LN(J183/J182) -> -0.07278638606
D184: 2002-09-13 | E184: 4959.3 | F184: 65.6 | G184: 95 | H184: 100 | I184: 59.1 | J184: 33 | K184: =LN(E184/E183) -> -0.02885790188 | L184: =LN(F184/F183) -> -0.02484132253 | M184: =LN(G184/G183) -> -0.1095622025 | N184: =LN(H184/H183) -> -0.05116828657 | O184: =LN(I184/I183) -> -0.00674538814 | P184: =LN(J184/J183) -> 0.01680711832
D185: 2002-09-20 | E185: 4737.5 | F185: 60 | G185: 82 | H185: 95 | I185: 57.4 | J185: 30 | K185: =LN(E185/E184) -> -0.04575503134 | L185: =LN(F185/F184) -> -0.08923113373 | M185: =LN(G185/G184) -> -0.1471576443 | N185: =LN(H185/H184) -> -0.05129329439 | O185: =LN(I185/I184) -> -0.02918662109 | P185: =LN(J185/J184) -> -0.0953101798
D186: 2002-09-27 | E186: 4909.3 | F186: 64 | G186: 87.5 | H186: 100.5 | I186: 59.7 | J186: 30.25 | K186: =LN(E186/E185) -> 0.03562179504 | L186: =LN(F186/F185) -> 0.06453852114 | M186: =LN(G186/G185) -> 0.0649195461 | N186: =LN(H186/H185) -> 0.0562808359 | O186: =LN(I186/I185) -> 0.03928771707 | P186: =LN(J186/J185) -> 0.008298802815
D187: 2002-10-04 | E187: 4677 | F187: 55.75 | G187: 79 | H187: 98.3 | I187: 60 | J187: 21.8 | K187: =LN(E187/E186) -> -0.04847448671 | L187: =LN(F187/F186) -> -0.138005673 | M187: =LN(G187/G186) -> -0.1021909409 | N187: =LN(H187/H186) -> -0.02213370035 | O187: =LN(I187/I186) -> 0.005012541824 | P187: =LN(J187/J186) -> -0.3275862147
D188: 2002-10-11 | E188: 4769.5 | F188: 59.5 | G188: 93.5 | H188: 98 | I188: 59.5 | J188: 24 | K188: =LN(E188/E187) -> 0.01958459886 | L188: =LN(F188/F187) -> 0.06509890221 | M188: =LN(G188/G187) -> 0.1685135838 | N188: =LN(H188/H187) -> -0.003056548483 | O188: =LN(I188/I187) -> -0.008368249671 | P188: =LN(J188/J187) -> 0.09614386055
D189: 2002-10-18 | E189: 4967.2 | F189: 67.8 | G189: 104.5 | H189: 107.5 | I189: 56.5 | J189: 27.25 | K189: =LN(E189/E188) -> 0.04061482347 | L189: =LN(F189/F188) -> 0.1305858824 | M189: =LN(G189/G188) -> 0.1112256351 | N189: =LN(H189/H188) -> 0.0925233689 | O189: =LN(I189/I188) -> -0.0517356744 | P189: =LN(J189/J188) -> 0.1269996908
D190: 2002-10-25 | E190: 4939.2 | F190: 68.9 | G190: 98.5 | H190: 107 | I190: 57.85 | J190: 25.6 | K190: =LN(E190/E189) -> -0.005652926303 | L190: =LN(F190/F189) -> 0.01609398307 | M190: =LN(G190/G189) -> -0.05913052323 | N190: =LN(H190/H189) -> -0.004662013106 | O190: =LN(I190/I189) -> 0.02361281549 | P190: =LN(J190/J189) -> -0.06246116962
D191: 2002-11-01 | E191: 4894 | F191: 69.9 | G191: 99.7 | H191: 102.5 | I191: 55.5 | J191: 27.95 | K191: =LN(E191/E190) -> -0.009193409745 | L191: =LN(F191/F190) -> 0.01440947122 | M191: =LN(G191/G190) -> 0.01210912879 | N191: =LN(H191/H190) -> -0.04296603588 | O191: =LN(I191/I190) -> -0.04147043289 | P191: =LN(J191/J190) -> 0.08782484812
D192: 2002-11-08 | E192: 4845.4 | F192: 68.15 | G192: 101.75 | H192: 101.75 | I192: 54.95 | J192: 27.9 | K192: =LN(E192/E191) -> -0.009980163746 | L192: =LN(F192/F191) -> -0.0253544911 | M192: =LN(G192/G191) -> 0.02035314735 | N192: =LN(H192/H191) -> -0.007343974256 | O192: =LN(I192/I191) -> -0.009959339903 | P192: =LN(J192/J191) -> -0.001790510774
D193: 2002-11-15 | E193: 5027.6 | F193: 70.55 | G193: 106.25 | H193: 107 | I193: 56.5 | J193: 30 | K193: =LN(E193/E192) -> 0.03691293179 | L193: =LN(F193/F192) -> 0.03461052016 | M193: =LN(G193/G192) -> 0.04327598348 | N193: =LN(H193/H192) -> 0.05031001014 | O193: =LN(I193/I192) -> 0.0278169573 | P193: =LN(J193/J192) -> 0.07257069283
D194: 2002-11-22 | E194: 5160.8 | F194: 74.9 | G194: 112.25 | H194: 109.5 | I194: 56.25 | J194: 33.25 | K194: =LN(E194/E193) -> 0.02614887317 | L194: =LN(F194/F193) -> 0.05983221222 | M194: =LN(G194/G193) -> 0.05493371882 | N194: =LN(H194/H193) -> 0.02309571479 | O194: =LN(I194/I193) -> -0.004434597068 | P194: =LN(J194/J193) -> 0.1028573854
D195: 2002-11-29 | E195: 5117.5 | F195: 74.75 | G195: 111 | H195: 105.5 | I195: 55.2 | J195: 34.9 | K195: =LN(E195/E194) -> -0.008425567683 | L195: =LN(F195/F194) -> -0.002004678252 | M195: =LN(G195/G194) -> -0.01119832531 | N195: =LN(H195/H194) -> -0.03721359634 | O195: =LN(I195/I194) -> -0.0188430878 | P195: =LN(J195/J194) -> 0.04843206211
D196: 2002-12-06 | E196: 4934.8 | F196: 71.4 | G196: 102.75 | H196: 103.5 | I196: 53.7 | J196: 32.85 | K196: =LN(E196/E195) -> -0.03635389334 | L196: =LN(F196/F195) -> -0.04585134293 | M196: =LN(G196/G195) -> -0.07723134794 | N196: =LN(H196/H195) -> -0.01913934021 | O196: =LN(I196/I195) -> -0.02754995177 | P196: =LN(J196/J195) -> -0.06053508428
D197: 2002-12-13 | E197: 4847.7 | F197: 71.45 | G197: 98.1 | H197: 103 | I197: 52.9 | J197: 30.7 | K197: =LN(E197/E196) -> -0.01780777955 | L197: =LN(F197/F196) -> 0.0007000350303 | M197: =LN(G197/G196) -> -0.04631148681 | N197: =LN(H197/H196) -> -0.004842624476 | O197: =LN(I197/I196) -> -0.01500966265 | P197: =LN(J197/J196) -> -0.06768909034
D198: 2002-12-20 | E198: 4774.6 | F198: 70.4 | G198: 93.9 | H198: 99.5 | I198: 52 | J198: 31 | K198: =LN(E198/E197) -> -0.01519416487 | L198: =LN(F198/F197) -> -0.01480464121 | M198: =LN(G198/G197) -> -0.04375698036 | N198: =LN(H198/H197) -> -0.03457134407 | O198: =LN(I198/I197) -> -0.01715962028 | P198: =LN(J198/J197) -> 0.009724549892
D199: 2002-12-27 | E199: 4573.9 | F199: 66.5 | G199: 89.4 | H199: 95.5 | I199: 50 | J199: 30 | K199: =LN(E199/E198) -> -0.04294396813 | L199: =LN(F199/F198) -> -0.0569913155 | M199: =LN(G199/G198) -> -0.04910970403 | N199: =LN(H199/H198) -> -0.04103139668 | O199: =LN(I199/I198) -> -0.03922071315 | P199: =LN(J199/J198) -> -0.03278982282
D200: 2003-01-03 | E200: 4899.5 | F200: 71.4 | G200: 99.05 | H200: 100.75 | I200: 53.8 | J200: 32.45 | K200: =LN(E200/E199) -> 0.06876692643 | L200: =LN(F200/F199) -> 0.07109592168 | M200: =LN(G200/G199) -> 0.102504091 | N200: =LN(H200/H199) -> 0.05351595334 | O200: =LN(I200/I199) -> 0.07325046174 | P200: =LN(J200/J199) -> 0.07850306149
D201: 2003-01-10 | E201: 4854.2 | F201: 70.1 | G201: 103.25 | H201: 99.6 | I201: 53.65 | J201: 31.25 | K201: =LN(E201/E200) -> -0.009288849507 | L201: =LN(F201/F200) -> -0.0183750753 | M201: =LN(G201/G200) -> 0.0415284587 | N201: =LN(H201/H200) -> -0.01148003624 | O201: =LN(I201/I200) -> -0.002791998091 | P201: =LN(J201/J200) -> -0.03768106697
D202: 2003-01-17 | E202: 4753.6 | F202: 67.2 | G202: 98 | H202: 101.25 | I202: 51.75 | J202: 32.25 | K202: =LN(E202/E201) -> -0.02094208386 | L202: =LN(F202/F201) -> -0.04224954651 | M202: =LN(G202/G201) -> -0.05218575317 | N202: =LN(H202/H201) -> 0.0164305414 | O202: =LN(I202/I201) -> -0.03605703693 | P202: =LN(J202/J201) -> 0.03149866706
... 66 more rows

Sheet Gaussian copula
A1: =MID(CELL("filename",A1),SEARCH("-",CELL("filename",A1))+7,SEARCH(".",CELL("filename",A1))-SEARCH("-",CELL("filename",A1))-7) & " > " & RIGHT(CELL("filename",A1), LEN(CELL("filename",A1)) - SEARCH("]", CELL("filename",A1))) -> Correlations and copulas > Gaussian copula
B3: 1 | C3: Original distributions
E5: V1 | F5: Percentile | G5: U1 | I5: V2 | J5: Percentile | K5: U2
E6: 0.1 | F6: 0.05 | G6: =NORMSINV(F6) -> -1.644853627 | I6: 0.1 | J6: 0.02 | K6: =NORMSINV(J6) -> -2.053748911
E7: 0.2 | F7: 0.2 | G7: =NORMSINV(F7) -> -0.8416212336 | I7: 0.2 | J7: 0.08 | K7: =NORMSINV(J7) -> -1.40507156
E8: 0.3 | F8: 0.3875 | G8: =NORMSINV(F8) -> -0.2858408749 | I8: 0.3 | J8: 0.18 | K8: =NORMSINV(J8) -> -0.9153650878
E9: 0.4 | F9: 0.55 | G9: =NORMSINV(F9) -> 0.1256613469 | I9: 0.4 | J9: 0.32 | K9: =NORMSINV(J9) -> -0.4676987991
E10: 0.5 | F10: 0.6875 | G10: =NORMSINV(F10) -> 0.4887764111 | I10: 0.5 | J10: 0.5 | K10: =NORMSINV(J10) -> 0
E11: 0.6 | F11: 0.8 | G11: =NORMSINV(F11) -> 0.8416212336 | I11: 0.6 | J11: 0.68 | K11: =NORMSINV(J11) -> 0.4676987991
E12: 0.7 | F12: 0.8875 | G12: =NORMSINV(F12) -> 1.213339622 | I12: 0.7 | J12: 0.82 | K12: =NORMSINV(J12) -> 0.9153650878
E13: 0.8 | F13: 0.95 | G13: =NORMSINV(F13) -> 1.644853627 | I13: 0.8 | J13: 0.92 | K13: =NORMSINV(J13) -> 1.40507156
E14: 0.9 | F14: 0.9875 | G14: =NORMSINV(F14) -> 2.241402728 | I14: 0.9 | J14: 0.98 | K14: =NORMSINV(J14) -> 2.053748911
B17: 2 | C17: Computing the bivariate density based on a gaussian copula
D19: Correlation --->> | E19: 0.1 | G19: V2
G20: =TRANSPOSE(K6:K14) -> -2.053748911 | H20: -1.40507156 | I20: -0.9153650878 | J20: -0.4676987991 | K20: 0 | L20: 0.4676987991 | M20: 0.9153650878 | N20: 1.40507156 | O20: 2.053748911
F21: V1 | G21: 0.1 | H21: 0.2 | I21: 0.3 | J21: 0.4 | K21: 0.5 | L21: 0.6 | M21: 0.7 | N21: 0.8 | O21: 0.9
E22: =G6 -> -1.644853627 | F22: 0.1 | G22: =bivar($E22,G$20,$E$19) -> 0.001584046645 | H22: =bivar($E22,H$20,$E$19) -> 0.005708324955 | I22: =bivar($E22,I$20,$E$19) -> 0.01190191673 | J22: =bivar($E22,J$20,$E$19) -> 0.01981651858 | K22: =bivar($E22,K$20,$E$19) -> 0.02910557514 | L22: =bivar($E22,L$20,$E$19) -> 0.03753994666 | M22: =bivar($E22,M$20,$E$19) -> 0.04350236607 | N22: =bivar($E22,N$20,$E$19) -> 0.0473610788 | O22: =bivar($E22,O$20,$E$19) -> 0.04942015888
E23: =G7 -> -0.8416212336 | F23: 0.2 | G23: =bivar($E23,G$20,$E$19) -> 0.005464229012 | H23: =bivar($E23,H$20,$E$19) -> 0.02039979773 | I23: =bivar($E23,I$20,$E$19) -> 0.04362482606 | J23: =bivar($E23,J$20,$E$19) -> 0.0742091558 | K23: =bivar($E23,K$20,$E$19) -> 0.1111744099 | L23: =bivar($E23,L$20,$E$19) -> 0.1458175392 | M23: =bivar($E23,M$20,$E$19) -> 0.1710628396 | N23: =bivar($E23,N$20,$E$19) -> 0.1879143753 | O23: =bivar($E23,O$20,$E$19) -> 0.1972381463
E24: =G8 -> -0.2858408749 | F24: 0.3 | G24: =bivar($E24,G$20,$E$19) -> 0.009644462147 | H24: =bivar($E24,H$20,$E$19) -> 0.03679591046 | I24: =bivar($E24,I$20,$E$19) -> 0.07993060881 | J24: =bivar($E24,J$20,$E$19) -> 0.1378008022 | K24: =bivar($E24,K$20,$E$19) -> 0.2090519718 | L24: =bivar($E24,L$20,$E$19) -> 0.2771198749 | M24: =bivar($E24,M$20,$E$19) -> 0.3276698289 | N24: =bivar($E24,N$20,$E$19) -> 0.3620718582 | O24: =bivar($E24,O$20,$E$19) -> 0.3815441031
E25: =G9 -> 0.1256613469 | F25: 0.4 | G25: =bivar($E25,G$20,$E$19) -> 0.0128852063 | H25: =bivar($E25,H$20,$E$19) -> 0.04982440042 | I25: =bivar($E25,I$20,$E$19) -> 0.1093288334 | J25: =bivar($E25,J$20,$E$19) -> 0.1901307652 | K25: =bivar($E25,K$20,$E$19) -> 0.2908163257 | L25: =bivar($E25,L$20,$E$19) -> 0.3882120762 | M25: =bivar($E25,M$20,$E$19) -> 0.4614471607 | N25: =bivar($E25,N$20,$E$19) -> 0.5119274543 | O25: =bivar($E25,O$20,$E$19) -> 0.540934495
E26: =G10 -> 0.4887764111 | F26: 0.5 | G26: =bivar($E26,G$20,$E$19) -> 0.01537380921 | H26: =bivar($E26,H$20,$E$19) -> 0.06007670433 | I26: =bivar($E26,I$20,$E$19) -> 0.1328328316 | J26: =bivar($E26,J$20,$E$19) -> 0.232527274 | K26: =bivar($E26,K$20,$E$19) -> 0.3578914854 | L26: =bivar($E26,L$20,$E$19) -> 0.4803147642 | M26: =bivar($E26,M$20,$E$19) -> 0.5732456696 | N26: =bivar($E26,N$20,$E$19) -> 0.637932418 | O26: =bivar($E26,O$20,$E$19) -> 0.6755373486
E27: =G11 -> 0.8416212336 | F27: 0.6 | G27: =bivar($E27,G$20,$E$19) -> 0.01723812395 | H27: =bivar($E27,H$20,$E$19) -> 0.06791447426 | I27: =bivar($E27,I$20,$E$19) -> 0.1510628646 | J27: =bivar($E27,J$20,$E$19) -> 0.26581761 | K27: =bivar($E27,K$20,$E$19) -> 0.41117443 | L27: =bivar($E27,L$20,$E$19) -> 0.5542091732 | M27: =bivar($E27,M$20,$E$19) -> 0.6636248893 | N27: =bivar($E27,N$20,$E$19) -> 0.740399787 | O27: =bivar($E27,O$20,$E$19) -> 0.7854643395
E28: =G12 -> 1.213339622 | F28: 0.7 | G28: =bivar($E28,G$20,$E$19) -> 0.01856338503 | H28: =bivar($E28,H$20,$E$19) -> 0.0736013108 | I28: =bivar($E28,I$20,$E$19) -> 0.1644847742 | J28: =bivar($E28,J$20,$E$19) -> 0.2906353512 | K28: =bivar($E28,K$20,$E$19) -> 0.4513681174 | L28: =bivar($E28,L$20,$E$19) -> 0.6105188053 | M28: =bivar($E28,M$20,$E$19) -> 0.7330357196 | N28: =bivar($E28,N$20,$E$19) -> 0.8195781475 | O28: =bivar($E28,O$20,$E$19) -> 0.8707871165
E29: =G13 -> 1.644853627 | F29: 0.8 | G29: =bivar($E29,G$20,$E$19) -> 0.01942010566 | H29: =bivar($E29,H$20,$E$19) -> 0.07736114685 | I29: =bivar($E29,I$20,$E$19) -> 0.1735023601 | J29: =bivar($E29,J$20,$E$19) -> 0.3075399866 | K29: =bivar($E29,K$20,$E$19) -> 0.4791055643 | L29: =bivar($E29,L$20,$E$19) -> 0.649816505 | M29: =bivar($E29,M$20,$E$19) -> 0.7819019491 | N29: =bivar($E29,N$20,$E$19) -> 0.8757082833 | O29: =bivar($E29,O$20,$E$19) -> 0.9315841263
E30: =G14 -> 2.241402728 | F30: 0.9 | G30: =bivar($E30,G$20,$E$19) -> 0.01987411051 | H30: =bivar($E30,H$20,$E$19) -> 0.07940934022 | I30: =bivar($E30,I$20,$E$19) -> 0.1785128242 | J30: =bivar($E30,J$20,$E$19) -> 0.3170933655 | K30: =bivar($E30,K$20,$E$19) -> 0.4950363099 | L30: =bivar($E30,L$20,$E$19) -> 0.6727062692 | M30: =bivar($E30,M$20,$E$19) -> 0.8106797201 | N30: =bivar($E30,N$20,$E$19) -> 0.9090556158 | O30: =bivar($E30,O$20,$E$19) -> 0.9679440549

Sheet WCDR
A1: =MID(CELL("filename",A1),SEARCH("-",CELL("filename",A1))+7,SEARCH(".",CELL("filename",A1))-SEARCH("-",CELL("filename",A1))-7) & " > " & RIGHT(CELL("filename",A1), LEN(CELL("filename",A1)) - SEARCH("]", CELL("filename",A1))) -> Correlations and copulas > WCDR
B3: 1 | C3: Some original parameters
D5: Loan amount | E5: 100 | F5: million EUR
D6: Default probability (average) | E6: 0.05 | F6: based on Moody's or S&P's Ratings.
D7: Recovery rate | E7: 0.4 | F7: typically, the firm is BB, and you see that after one year BB's default by 5%.
D8: Market state | E8: 0.95
D9: Normal inverse | E9: =NORMINV(E8,0,1) -> 1.644853627
D10: Correlation (average) | E10: 0.999
B12: 2 | C12: Some computations
D14: WCDR | E14: =NORMDIST((NORMINV(E6,0,1)+(SQRT(E10)*E9))/SQRT(1-E10),0,1,TRUE) -> 0.489623116
D15: Loss | E15: =1-E7 -> 0.6
D16: Worst case loss scenario | E16: =E5*E14*E15 -> 29.37738696 | F16: million EUR
D17: Worst case value scenario | E17: =E5-E16 -> 70.62261304 | F17: million EUR
